Workbook

Sheet ORÇAMENTO
A1: <---- NUMERAR SERVIÇOS PARA CPU | E1: Ministério do Desenvolvimento Regional
E2: Companhia de Desenvolvimento dos Vales do São Francisco e do Parnaíba
E3: 1ª Superintendência Regional
B5: OBRA: | C5: PAVIMENTAÇÃO ASFÁLTICA EM CBUQ - VIAS DIVERSAS - BAIRROS: N. SRA. DO ROSÁRIO, CÍCERO PASSOS E COMUNIDADE PERNAMBUCO - PIRAPORA-MG | J5: BDI Serviços (%): | L5: ='BDI SERV'!E26 -> 21.35
B6: DATA: | C6: JANEIRO / 2025 | I6: BDI Diferenciado Serviços (%): | L6: ='BDI FORN'!D31 -> 15
B7: PRAZO DE EXECUÇÃO: 180 DIAS | I7: BDI Fornecimentos (%): | L7: ='BDI FORN'!D31 -> 15
B8: PLANILHA DE ORÇAMENTAÇÃO
B9: ITEM | C9: CÓDIGO | D9: FONTE | E9: DISCRIMINAÇÃO | F9: TIPO | G9: UNID. | H9: QUANT. | I9: VR.UNIT.S/BDI | J9: PR. UNIT.C/BDI | K9: C. TOT.S/BDI | L9: P. TOT.C/BDI
A10: A | B10: 1 | E10: SERVIÇOS PRELIMINARES | K10: =SUM(K11:K15) -> 189849.84 | L10: =SUM(L11:L15) -> 230323.19
A11: 1 | B11: 1.1 | C11: CPU.1 | D11: CODEVASF | E11: MOBILIZAÇÃO E DESMOBILIZAÇÃO | F11: SERV | G11: GL | H11: 1 | I11: =VLOOKUP(A11,'CPU-SERV'!A:K,11,0) -> 20151.82 | J11: =TRUNC(_xlfn.IFS(F11="SERV",I11*(1+$L$5/100),F11="SERV DIF",I11*(1+$L$6/100),F11="FORN",I11*(1+$L$7/100)),2) -> 24454.23 | K11: =TRUNC(H11*I11,2) -> 20151.82 | L11: =TRUNC(H11*J11,2) -> 24454.23
A12: 2 | B12: 1.2 | C12: CPU.2 | D12: CODEVASF | E12: ADMINISTRAÇÃO LOCAL | F12: SERV | G12: GL | H12: 1 | I12: =VLOOKUP(A12,'CPU-SERV'!A:K,11,0) -> 142227.89 | J12: =TRUNC(_xlfn.IFS(F12="SERV",I12*(1+$L$5/100),F12="SERV DIF",I12*(1+$L$6/100),F12="FORN",I12*(1+$L$7/100)),2) -> 172593.54 | K12: =TRUNC(H12*I12,2) -> 142227.89 | L12: =TRUNC(H12*J12,2) -> 172593.54
A13: 3 | B13: 1.3 | C13: CPU.3 | D13: CODEVASF | E13: CANTEIRO DE OBRAS | F13: SERV | G13: GL | H13: 1 | I13: =VLOOKUP(A13,'CPU-SERV'!A:K,11,0) -> 13851.99 | J13: =TRUNC(_xlfn.IFS(F13="SERV",I13*(1+$L$5/100),F13="SERV DIF",I13*(1+$L$6/100),F13="FORN",I13*(1+$L$7/100)),2) -> 16809.38 | K13: 13851.99 | L13: 16809.38
A14: 4 | B14: 1.4 | C14: 103689 | D14: SINAPI | E14: PLACA DE OBRA EM CHAPA DE AÇO GALVANIZADO | F14: SERV | G14: M2 | H14: 6 | I14: =VLOOKUP(A14,'CPU-SERV'!A:K,11,0) -> 349.69 | J14: =TRUNC(_xlfn.IFS(F14="SERV",I14*(1+$L$5/100),F14="SERV DIF",I14*(1+$L$6/100),F14="FORN",I14*(1+$L$7/100)),2) -> 424.34 | K14: 2098.14 | L14: 2546.04
A15: 6 | B15: 1.5 | C15: 78472 | D15: SINAPI | E15: SERVIÇOS TOPOGRÁFICOS PARA PAVIMENTAÇÃO, INCLUSIVE LEVANTAMENTO PLANIALTIMÉTRICO CADASTRAL, GERAÇÃO DE NOTAS DE SERVIÇO, SEÇÕES TRANSVERSAIS E GREIDE, ESTAQUEAMENTO E ACOMPANHAMENTO EXECUTIVO | F15: SERV | G15: M2 | H15: 24000 | I15: =VLOOKUP(A15,'CPU-SERV'!A:K,11,0) -> 0.48 | J15: =TRUNC(_xlfn.IFS(F15="SERV",I15*(1+$L$5/100),F15="SERV DIF",I15*(1+$L$6/100),F15="FORN",I15*(1+$L$7/100)),2) -> 0.58 | K15: 11520 | L15: 13920
A16: B | B16: 2 | E16: TERRAPLANAGEM E PAVIMENTAÇÃO | K16: =SUM(K17:K22) -> 994547.8 | L16: =SUM(L17:L22) -> 1206500.4
A17: 7 | B17: 2.1 | C17: 5502140 | D17: SICRO | E17: ESCAVAÇÃO, CARGA E TRANSPORTE DE MATERIAL DE 1ª CATEGORIA - DMT 1.000 A 1.200M, CAMINHO DE SERVIÇO EM REVESTIMENTO PRIMÁRIO | F17: SERV | G17: M3 | H17: 3600 | I17: =VLOOKUP(A17,'CPU-SERV'!A:K,11,0) -> 6.59 | J17: =TRUNC(_xlfn.IFS(F17="SERV",I17*(1+$L$5/100),F17="SERV DIF",I17*(1+$L$6/100),F17="FORN",I17*(1+$L$7/100)),2) -> 7.99 | K17: =TRUNC(H17*I17,2) -> 23724 | L17: =TRUNC(H17*J17,2) -> 28764
A18: 9 | B18: 2.2 | C18: 4011209 | D18: SICRO | E18: REGULARIZAÇÃO E COMPACTAÇÃO DO SUBLEITO | F18: SERV | G18: M2 | H18: 24000 | I18: =VLOOKUP(A18,'CPU-SERV'!A:K,11,0) -> 1.14 | J18: =TRUNC(_xlfn.IFS(F18="SERV",I18*(1+$L$5/100),F18="SERV DIF",I18*(1+$L$6/100),F18="FORN",I18*(1+$L$7/100)),2) -> 1.38 | K18: =TRUNC(H18*I18,2) -> 27360 | L18: =TRUNC(H18*J18,2) -> 33120
A19: 10 | B19: 2.3 | C19: 4011256a | D19: SICRO | E19: EXECUÇÃO E COMPACTAÇÃO DE BASE E OU SUB ESTABILIZADA GRANULOMETRICAMENTE COM MISTURA SOLO BRITA (50%-50%), NA PISTA COM MATERIAL DE JAZIDA E BRITA COMERCIAL | F19: SERV | G19: M3 | H19: 3600 | I19: =VLOOKUP(A19,'CPU-SERV'!A:K,11,0) -> 133.88 | J19: =TRUNC(_xlfn.IFS(F19="SERV",I19*(1+$L$5/100),F19="SERV DIF",I19*(1+$L$6/100),F19="FORN",I19*(1+$L$7/100)),2) -> 162.46 | K19: 481968 | L19: 584856
A20: 12 | B20: 2.4 | C20: 4011352 | D20: SICRO | E20: IMPRIMAÇÃO COM EMULSÃO ASFÁLTICA (EAI) | F20: SERV | G20: M2 | H20: 24000 | I20: =VLOOKUP(A20,'CPU-SERV'!A:K,11,0) -> 0.39 | J20: =TRUNC(_xlfn.IFS(F20="SERV",I20*(1+$L$5/100),F20="SERV DIF",I20*(1+$L$6/100),F20="FORN",I20*(1+$L$7/100)),2) -> 0.47 | K20: 9360 | L20: 11280
A21: 13 | B21: 2.5 | C21: 4011353 | D21: SICRO | E21: PINTURA DE LIGAÇÃO COM EMULSÃO ASFÁLTICA RR-1C | F21: SERV | G21: M2 | H21: 22200 | I21: =VLOOKUP(A21,'CPU-SERV'!A:K,11,0) -> 0.27 | J21: =TRUNC(_xlfn.IFS(F21="SERV",I21*(1+$L$5/100),F21="SERV DIF",I21*(1+$L$6/100),F21="FORN",I21*(1+$L$7/100)),2) -> 0.32 | K21: 5994 | L21: 7104
A22: 14 | B22: 2.6 | C22: 4011463 | D22: SICRO | E22: EXECUÇÃO DE PAVIMENTO COM APLICAÇÃO DE CONCRETO ASFÁLTICO USINADO A QUENTE (CBUQ), CAMADA DE ROLAMENTO - EXCLUSIVE TRANSPORTE | F22: SERV | G22: T | H22: 1940 | I22: =VLOOKUP(A22,'CPU-SERV'!A:K,11,0) -> 229.97 | J22: =TRUNC(_xlfn.IFS(F22="SERV",I22*(1+$L$5/100),F22="SERV DIF",I22*(1+$L$6/100),F22="FORN",I22*(1+$L$7/100)),2) -> 279.06 | K22: =TRUNC(H22*I22,2) -> 446141.8 | L22: =TRUNC(H22*J22,2) -> 541376.4
A23: C | B23: 3 | E23: TRANSPORTE DE MATERIAIS | K23: =SUM(K24:K28) -> 726815.48 | L23: =SUM(L24:L28) -> 875905.48
A24: 15 | B24: 3.1 | C24: 5915321 | D24: SICRO | E24: TRANSPORTE COM CAMINHÃO BASCULANTE, EM RODOVIA PAVIMENTADA | F24: SERV | G24: TXKM | H24: 500000.0038 | I24: =VLOOKUP(A24,'CPU-SERV'!A:K,11,0) -> 0.64 | J24: =TRUNC(_xlfn.IFS(F24="SERV",I24*(1+$L$5/100),F24="SERV DIF",I24*(1+$L$6/100),F24="FORN",I24*(1+$L$7/100)),2) -> 0.77 | K24: =TRUNC(H24*I24,2) -> 320000 | L24: =TRUNC(H24*J24,2) -> 385000
A25: 16 | B25: 3.2 | C25: 5915320 | D25: SICRO | E25: TRANSPORTE COM CAMINHÃO BASCULANTE, RODOVIA EM REVESTIMENTO PRIMÁRIO | F25: SERV | G25: TXKM | H25: 16499.9958 | I25: =VLOOKUP(A25,'CPU-SERV'!A:K,11,0) -> 0.7 | J25: =TRUNC(_xlfn.IFS(F25="SERV",I25*(1+$L$5/100),F25="SERV DIF",I25*(1+$L$6/100),F25="FORN",I25*(1+$L$7/100)),2) -> 0.84 | K25: 11549.99 | L25: 13859.99
A26: 17 | B26: 3.3 | C26: 5914434 | D26: SICRO | E26: TRANSPORTE COM CAMINHÃO CARROCERIA 9T, EM VIA URBANA PREDOMINANTEMENTE PAVIMENTADA | F26: SERV | G26: TXKM | H26: 599.9950624 | I26: =VLOOKUP(A26,'CPU-SERV'!A:K,11,0) -> 0.73 | J26: =TRUNC(_xlfn.IFS(F26="SERV",I26*(1+$L$5/100),F26="SERV DIF",I26*(1+$L$6/100),F26="FORN",I26*(1+$L$7/100)),2) -> 0.88 | K26: 437.99 | L26: 527.99
A27: 18 | B27: 3.4 | C27: 5914612 | D27: SICRO | E27: TRANSPORTE DE MASSA ASFÁLTICA COM CAMINHÃO BASCULANTE, EM VIA URBANA PREDOMINANTEMENTE PAVIMENTADA | F27: SERV | G27: TXKM | H27: 340000 | I27: =VLOOKUP(A27,'CPU-SERV'!A:K,11,0) -> 1.16 | J27: =TRUNC(_xlfn.IFS(F27="SERV",I27*(1+$L$5/100),F27="SERV DIF",I27*(1+$L$6/100),F27="FORN",I27*(1+$L$7/100)),2) -> 1.4 | K27: 394400 | L27: 476000
A28: 19 | B28: 3.5 | C28: 5914622 | D28: SICRO | E28: TRANSPORTE COM CAMINHÃO TANQUE DE TRANSPORTE DE MATERIAL ASFÁLTICO DE 30000 L, EM VIA URBANA PREDOMINANTEMENTE PAVIMENTADA | F28: SERV | G28: TXKM | H28: 250 | I28: =VLOOKUP(A28,'CPU-SERV'!A:K,11,0) -> 1.71 | J28: =TRUNC(_xlfn.IFS(F28="SERV",I28*(1+$L$5/100),F28="SERV DIF",I28*(1+$L$6/100),F28="FORN",I28*(1+$L$7/100)),2) -> 2.07 | K28: 427.5 | L28: 517.5
A29: E | B29: 4 | E29: DRENAGEM E OBRAS COMPLEMENTARES | K29: =SUM(K30:K34) -> 381958.91 | L29: =SUM(L30:L34) -> 463426.86
A30: 20 | B30: 4.1 | C30: 94267 | D30: SINAPI | E30: GUIA (MEIO-FIO) E SARJETA CONJUGADOS DE CONCRETO, MOLDADA IN LOCO COM EXTRUSORA, 45 CM BASE (15 CM BASE DA GUIA + 30 CM BASE DA SARJETA) X 22 CM ALTURA | F30: SERV | G30: M | H30: 6000 | I30: =VLOOKUP(A30,'CPU-SERV'!A:K,11,0) -> 48.29 | J30: =TRUNC(_xlfn.IFS(F30="SERV",I30*(1+$L$5/100),F30="SERV DIF",I30*(1+$L$6/100),F30="FORN",I30*(1+$L$7/100)),2) -> 58.59 | K30: =TRUNC(H30*I30,2) -> 289740 | L30: =TRUNC(H30*J30,2) -> 351540
A31: 23 | B31: 4.2 | C31: 94263 | D31: SINAPI | E31: GUIA (MEIO FIO) EM CONCRETO, MOLDADO IN LOCO COM EXTRUSORA - 13CM DE BASE X 22CM DE ALTURA | F31: SERV | G31: M | H31: 1200 | I31: =VLOOKUP(A31,'CPU-SERV'!A:K,11,0) -> 24.06 | J31: =TRUNC(_xlfn.IFS(F31="SERV",I31*(1+$L$5/100),F31="SERV DIF",I31*(1+$L$6/100),F31="FORN",I31*(1+$L$7/100)),2) -> 29.19 | K31: 28872 | L31: 35028
A32: 46 | B32: 4.3 | C32: 5213440 | D32: SICRO | E32: PLACA DE REGULAMENTAÇÃO EM AÇO, D=60CM - PELÍCULA RETRORREFLETIVA - FORNECIMENTO E INSTALAÇÃO, INCLUSIVE SUPORTE | F32: SERV | G32: UN. | H32: 24 | I32: =VLOOKUP(A32,'CPU-SERV'!A:K,11,0) -> 256.2 | J32: =TRUNC(_xlfn.IFS(F32="SERV",I32*(1+$L$5/100),F32="SERV DIF",I32*(1+$L$6/100),F32="FORN",I32*(1+$L$7/100)),2) -> 310.89 | K32: 6148.8 | L32: 7461.36
A33: 49 | B33: 4.4 | C33: 5213401 | D33: SICRO | E33: PINTURA DE EIXO VIÁRIO SOBRE ASFALTO COM TINTA RETRORREFLETIVA A BASE DE RESINA ACRÍLICA COM MICROESFERAS DE VIDRO, APLICAÇÃO MECÂNICA COM DEMARCADORA AUTOPROPELIDA | F33: SERV | G33: M2 | H33: 1099.9975 | I33: =VLOOKUP(A33,'CPU-SERV'!A:K,11,0) -> 32.41 | J33: =TRUNC(_xlfn.IFS(F33="SERV",I33*(1+$L$5/100),F33="SERV DIF",I33*(1+$L$6/100),F33="FORN",I33*(1+$L$7/100)),2) -> 39.32 | K33: 35650.91 | L33: 43251.9
A34: 51 | B34: 4.5 | C34: 5213405 | D34: SICRO | E34: PINTURA DE FAIXA DE PEDESTRE OU ZEBRADA TINTA RETRORREFLETIVA A BASE DE RESINA ACRÍLICA COM MICROESFERAS DE VIDRO, APLICAÇÃO MANUAL | F34: SERV | G34: M2 | H34: 480 | I34: =VLOOKUP(A34,'CPU-SERV'!A:K,11,0) -> 44.89 | J34: =TRUNC(_xlfn.IFS(F34="SERV",I34*(1+$L$5/100),F34="SERV DIF",I34*(1+$L$6/100),F34="FORN",I34*(1+$L$7/100)),2) -> 54.47 | K34: 21547.2 | L34: 26145.6
A35: F | B35: 5 | E35: FORNECIMENTOS - MATERIAL ASFÁLTICO (BDI DIFERENCIADO) | K35: =SUM(K36:K41) -> 714319.6 | L35: =SUM(L36:L41) -> 821465.94
A36: F1 | B36: 5.1 | C36: CPU.7 | D36: ANP | E36: AQUISIÇÃO DE EMULSÃO ASFÁLTICA PARA IMPRIMAÇÃO (EAI) - EXCLUSIVE TRANSPORTE | F36: FORN | G36: T | H36: 32 | I36: =VLOOKUP(A36,'CPU-FORNEC'!A:J,9,0) -> 3275.67 | J36: =TRUNC(_xlfn.IFS(F36="SERV",I36*(1+$L$5/100),F36="SERV DIF",I36*(1+$L$6/100),F36="FORN",I36*(1+$L$7/100)),2) -> 3767.02 | K36: =TRUNC(H36*I36,2) -> 104821.44 | L36: =TRUNC(H36*J36,2) -> 120544.64
A37: F2 | B37: 5.2 | C37: CPU.8 | D37: CODEVASF | E37: TRANSPORTE DE EMULSÃO ASFÁLTICA PARA IMPRIMAÇÃO (EAI) | F37: SERV DIF | G37: T | H37: 32 | I37: =VLOOKUP(A37,'CPU-FORNEC'!A:J,9,0) -> 323.18 | J37: =TRUNC(_xlfn.IFS(F37="SERV",I37*(1+$L$5/100),F37="SERV DIF",I37*(1+$L$6/100),F37="FORN",I37*(1+$L$7/100)),2) -> 371.65 | K37: 10341.76 | L37: 11892.8
A38: F3 | B38: 5.3 | C38: CPU.9 | D38: ANP | E38: AQUISIÇÃO DE EMULSAO ASFALTICA CATIONICA RR-1C - EXCLUSIVE TRANSPORTE | F38: FORN | G38: T | H38: 10 | I38: =VLOOKUP(A38,'CPU-FORNEC'!A:J,9,0) -> 3478 | J38: =TRUNC(_xlfn.IFS(F38="SERV",I38*(1+$L$5/100),F38="SERV DIF",I38*(1+$L$6/100),F38="FORN",I38*(1+$L$7/100)),2) -> 3999.7 | K38: 34780 | L38: 39997
A39: F4 | B39: 5.4 | C39: CPU.10 | D39: CODEVASF | E39: TRANSPORTE DE EMULSÃO ASFÁLTICA CATIONICA RR-1C | F39: SERV DIF | G39: T | H39: 10 | I39: =VLOOKUP(A39,'CPU-FORNEC'!A:J,9,0) -> 338.96 | J39: =TRUNC(_xlfn.IFS(F39="SERV",I39*(1+$L$5/100),F39="SERV DIF",I39*(1+$L$6/100),F39="FORN",I39*(1+$L$7/100)),2) -> 389.8 | K39: 3389.6 | L39: 3898
A40: F5 | B40: 5.5 | C40: CPU.11 | D40: ANP | E40: AQUISIÇÃO DE CONCRETO ASFÁLTICO DE PETRÓLEO - CAP 50/70 - EXCLUSIVE TRANSPORTE | F40: FORN | G40: T | H40: 110 | I40: =VLOOKUP(A40,'CPU-FORNEC'!A:J,9,0) -> 4719.13 | J40: =TRUNC(_xlfn.IFS(F40="SERV",I40*(1+$L$5/100),F40="SERV DIF",I40*(1+$L$6/100),F40="FORN",I40*(1+$L$7/100)),2) -> 5426.99 | K40: 519104.3 | L40: 596968.9
A41: F6 | B41: 5.6 | C41: CPU.12 | D41: CODEVASF | E41: TRANSPORTE DE CONCRETO ASFÁLTICO DE PETRÓLEO - CAP 50/70 | F41: SERV DIF | G41: T | H41: 110 | I41: =VLOOKUP(A41,'CPU-FORNEC'!A:J,9,0) -> 380.75 | J41: =TRUNC(_xlfn.IFS(F41="SERV",I41*(1+$L$5/100),F41="SERV DIF",I41*(1+$L$6/100),F41="FORN",I41*(1+$L$7/100)),2) -> 437.86 | K41: 41882.5 | L41: 48164.6
E42: TOTAL GERAL DA OBRA COM BDI | K42: =SUM(K10,K16,K23,K29,K35) -> 3007491.63 | L42: =SUM(L10,L16,L23,L29,L35) -> 3597621.87

Sheet CPU-SERV
A1: 1 | B1: 1ª/GRD | K1: =J37 -> 20151.82 | L1: Minas Gerais
B2: OBRA: | C2: PAVIMENTAÇÃO ASFÁLTICA EM CBUQ - VIAS DIVERSAS - BAIRROS: N. SRA. DO ROSÁRIO, CÍCERO PASSOS E COMUNIDADE PERNAMBUCO - PIRAPORA-MG | L2: Outubro/2024
B3: Custo Unitário de Referência | E3: Minas Gerais | K3: QUANT.MATERIAL: | M3: =SUM(M20:M904) ->  | N3: =M3/(ORÇAMENTO!L42-ORÇAMENTO!L35)/(1+ORÇAMENTO!L6) -> 
E4: Outubro/2024 | H4: Produção da equipe | I4: 0.5 | J4: =VLOOKUP(A1,ORÇAMENTO!$A$10:$L$42,7,1) -> GL
B5: CPU.1 | C5: MOBILIZAÇÃO E DESMOBILIZAÇÃO | I5: Valores em reais (R$)
B6: A - EQUIPAMENTOS | D6: Quantidade | E6: Utilização | G6: Custo Horário | J6: Custo
E7: Operativa | F7: Improdutiva | G7: Produtivo | H7: Improdutivo | J7: Horário Total
B8: E9687 | C8: Caminhão carroceria com capacidade de 5 t - 115 kW | D8: 8 | E8: 0.6 | F8: 0.4 | G8: 142.9363 | H8: 55.7675 | J8: =D8*(E8*G8+F8*H8) -> 864.55024 | L8: distancia = | M8: 175 | N8: MOC - PIRAPORA
B9: E9575 | C9: Caminhão basculante com caçamba estanque com capacidade de 14 m³ - 210 kW | D9: 8 | E9: 1 | F9: 0 | G9: 303.2497 | H9: 88.6004 | J9: =D9*(E9*G9+F9*H9) -> 2425.9976 | L9: Pá carregadeira | O9: 10.1 | P9: ton
H10: Custo horário total de equipamentos | J10: =SUM(J8:J9) -> 3290.54784 | L10: Motoniveladora | O10: 12.47 | P10: ton
B11: B - MÃO DE OBRA | D11: Quantidade | E11: Unidade | G11: Custo Horário | H11: Custo Horário Total | L11: Trator de pneus | O11: 2.8 | P11: ton
B12: P9824 | C12: Servente | D12: 16 | E12: h | G12: 20.6314 | J12: =D12*G12 -> 330.1024 | L12: Rolo Compactador | O12: 15.33 | P12: ton
J13: =D13*G13 -> 0 | L13: Grade de disco | O13: 1 | P13: ton
D14: Custo horário total de mão de obra | J14: =SUM(J12:J13) -> 330.1024 | L14: Vibroacabadora | O14: 17.5 | P14: ton
D15: Custo horário total de execução | J15: =J10+J14 -> 3620.65024 | L15: RETROESCAVADEIRA | O15: 6.67 | P15: ton
D16: Custo unitário de execução | J16: =J15/I4 -> 7241.30048 | L16: MOBILIZAÇÃO + DESMOBILIZAÇÃO DOS EQUIPTOS | O16: =SUM(O9:O15)*M8 -> 11527.25 | P16: ton.km
H17: Custo do FIC | J17: 0
H18: Custo do FIT | J18: 0
B19: C - MATERIAL | D19: Quantidade | E19: Unidade | G19: Preço Unitário | H19: Custo Unitário
B20: - | C20: 0 | E20: 0 | G20: 0 | J20: =D20*G20 -> 0 | L20: =VLOOKUP(A1,ORÇAMENTO!A$11:L$42,6,FALSE) -> SERV | M20: =J20*L20 -> 
B21: - | C21: 0 | E21: 0 | G21: 0 | J21: =D21*G21 -> 0 | L21: =VLOOKUP(A1,ORÇAMENTO!A$11:L$42,6,FALSE) -> SERV | M21: =J21*L21 -> 
D22: Custo unitário total de material | J22: =SUM(J20:J21) -> 0
B23: D - ATIVIDADES AUXILIARES | D23: Quantidade | E23: Unidade | G23: Custo Unitário | H23: Custo Unitário
B24: 5914640 | C24: Transporte com cavalo mecânico com semirreboque com capacidade de 30 t - rodovia pavimentada | D24: 23054.5 | E24: tkm | G24: 0.56 | J24: =D24*G24 -> 12910.52
B25: - | C25: 0 | D25: 0 | E25: 0 | G25: 0 | J25: =D25*G25 -> 0
D26: Custo total de atividades auxiliares | J26: =SUM(J24:J25) -> 12910.52
H27: Subtotal | J27: =J16+J22+J26+J17+J18 -> 20151.82048
B28: E - TEMPO FIXO | D28: Código | E28: Quantidade | F28: Unidade | H28: Custo Unitário | I28: Custo Unitário
B29: - | C29: 0 | D29: - | F29: 0 | H29: 0 | J29: =ROUNDDOWN(E29*H29,4) -> 0
B30: - | C30: 0 | D30: - | F30: 0 | H30: 0 | J30: =ROUNDDOWN(E30*H30,4) -> 0
D31: Custo unitário total de tempo fixo | J31: =SUM(J29:J30) -> 0
B32: F - MOMENTO DE TRANSPORTE | D32: Quantidade | E32: Unidade | F32: DMT | J32: Custo Unitário
F33: LN | G33: RP | H33: P
B34: - | C34: 0 | E34: tkm
B35: - | C35: 0 | E35: tkm
D36: Custo unitário total de transporte
F37: Custo unitário direto total | J37: =TRUNC(J27+J31,2) -> 20151.82
B38: Obs.
A40: =A1+1 -> 2 | B40: 1ª/GRD | K40: =J81 -> 142227.89
B41: OBRA: | C41: PAVIMENTAÇÃO ASFÁLTICA EM CBUQ - VIAS DIVERSAS - BAIRROS: N. SRA. DO ROSÁRIO, CÍCERO PASSOS E COMUNIDADE PERNAMBUCO - PIRAPORA-MG
B42: Custo Unitário de Referência | E42: Minas Gerais
E43: Outubro/2024 | H43: Produção da equipe | I43: 0.1666666667 | J43: =VLOOKUP(A40,ORÇAMENTO!$A$10:$L$42,7,1) -> GL | K43: 6 MESES | L43: =ORÇAMENTO!L42 -> 3597621.87
B44: CPU.2 | C44: ADMINISTRAÇÃO LOCAL | I44: Valores em reais (R$)
B45: A - EQUIPAMENTOS | D45: Quantidade | E45: Utilização | G45: Custo Horário | J45: Custo
E46: Operativa | F46: Improdutiva | G46: Produtivo | H46: Improdutivo | J46: Horário Total
B47: - | C47: 0 | G47: 0 | H47: 0 | J47: =D47*(E47*G47+F47*H47) -> 0
B48: - | C48: 0 | G48: 0 | H48: 0 | J48: =D48*(E48*G48+F48*H48) -> 0
H49: Custo horário total de equipamentos | J49: =SUM(J47:J48) -> 0
B50: B - MÃO DE OBRA | D50: Quantidade | E50: Unidade | G50: Custo Horário | H50: Custo Horário Total
B51: P9812 | C51: Engenheiro | D51: 0.2468727582 | E51: mês | G51: 25688.3106 | J51: =D51*G51 -> 6341.744091 | K51: =ORÇAMENTO!L42 -> 3597621.87
B52: P9840 | C52: Encarregado geral | D52: 1 | E52: mês | G52: 9786.521475 | J52: =D52*G52 -> 9786.521475
B53: P9876 | C53: Técnico de segurança do trabalho | D53: 0.5 | E53: mês | G53: 5758.839375 | J53: 2879.419688
B54: P9858 | C54: Laboratorista | D54: 0.5 | E54: mês | G54: 4732.1862 | J54: 2366.0931
B55: P9806 | C55: Auxiliar administrativo | D55: 0.5 | E55: mês | G55: 3275.7018 | J55: 1637.8509
D56: Custo horário total de mão de obra | J56: =SUM(J51:J55) -> 23011.62925
D57: Custo horário total de execução | J57: =J49+J56 -> 23011.62925
D58: Custo unitário de execução | J58: =J57/I43 -> 138069.7755
H59: Custo do FIC | J59: -
H60: Custo do FIT | J60: -
B61: C - MATERIAL | D61: Quantidade | E61: Unidade | G61: Preço Unitário | H61: Custo Unitário
B62: - | C62: 0 | D62: 0 | E62: 0 | G62: 0 | J62: =D62*G62 -> 0 | L62: =VLOOKUP(A40,ORÇAMENTO!A$11:L$42,6,FALSE) -> SERV | M62: =J62*L62 -> 
B63: - | C63: 0 | D63: 0 | E63: 0 | G63: 0 | J63: 0 | L63: =VLOOKUP(A40,ORÇAMENTO!A$11:L$42,6,FALSE) -> SERV | M63: =J63*L63 -> 
D64: Custo unitário total de material | J64: =SUM(J62:J63) -> 0
B65: D - ATIVIDADES AUXILIARES | D65: Quantidade | E65: Unidade | G65: Custo Unitário | H65: Custo Unitário
B66: 14250 | C66: Energia Elétrica | D66: 360 | E66: kwh | G66: 0.95 | J66: =D66*G66 -> 342
B67: 44480 | C67: Tarifa A - Água e Esgoto | D67: 24 | E67: m³ | G67: 17.97 | J67: =D67*G67 -> 431.28
B68: 5212560 | C68: Placa de advertência para sinalização de obras montada em suporte metálico móvel, lado 1,00 m - utilização de 600 ciclos - fornecimento, 01 implantação e 01 retirada diária | D68: 792 | E68: un.dia | G68: 3.82 | J68: =D68*G68 -> 3025.44
B69: Cotação | C69: Telefone | D69: 6 | E69: mês | G69: 59.9 | J69: =D69*G69 -> 359.4
D70: Custo total de atividades auxiliares | J70: =SUM(J66:J69) -> 4158.12
H71: Subtotal | J71: =J58+J64+J70 -> 142227.8955
B72: E - TEMPO FIXO | D72: Código | E72: Quantidade | F72: Unidade | H72: Custo Unitário | I72: Custo Unitário
B73: - | C73: 0 | D73: - | E73: 0 | F73: t | H73: 0 | J73: =ROUNDDOWN(E73*H73,4) -> 0
B74: - | C74: 0 | D74: - | E74: 0 | F74: t | H74: 0 | J74: =ROUNDDOWN(E74*H74,4) -> 0
D75: Custo unitário total de tempo fixo | J75: =SUM(J73:J74) -> 0
B76: F - MOMENTO DE TRANSPORTE | D76: Quantidade | E76: Unidade | F76: DMT | J76: Custo Unitário
F77: LN | G77: RP | H77: P
B78: - | C78: 0 | E78: tkm
B79: - | C79: 0 | E79: tkm
D80: Custo unitário total de transporte
F81: Custo unitário direto total | J81: =TRUNC(J71+J75,2) -> 142227.89
B82: Obs.
A84: =A40+1 -> 3 | B84: 1ª/GRD | K84: =J120 -> 13851.99
B85: OBRA: | C85: PAVIMENTAÇÃO ASFÁLTICA EM CBUQ - VIAS DIVERSAS - BAIRROS: N. SRA. DO ROSÁRIO, CÍCERO PASSOS E COMUNIDADE PERNAMBUCO - PIRAPORA-MG
B86: Custo Unitário de Referência | E86: Minas Gerais
E87: Outubro/2024 | H87: Produção da equipe | I87: 1 | J87: =VLOOKUP(A84,ORÇAMENTO!$A$10:$L$42,7,1) -> GL
B88: CPU.3 | C88: CANTEIRO DE OBRAS | I88: Valores em reais (R$)
B89: A - EQUIPAMENTOS | D89: Quantidade | E89: Utilização | G89: Custo Horário | J89: Custo
E90: Operativa | F90: Improdutiva | G90: Produtivo | H90: Improdutivo | J90: Horário Total
B91: - | C91: 0 | G91: 0 | H91: 0 | J91: =D91*(E91*G91+F91*H91) -> 0
B92: - | C92: 0 | G92: 0 | H92: 0 | J92: =D92*(E92*G92+F92*H92) -> 0
H93: Custo horário total de equipamentos | J93: =SUM(J91:J92) -> 0
B94: B - MÃO DE OBRA | D94: Quantidade | E94: Unidade | G94: Custo Horário | H94: Custo Horário Total
B95: P9824 | C95: Servente | D95: 8 | E95: h | G95: 20.6314 | J95: =D95*G95 -> 165.0512
B96: P9808 | C96: Carpinteiro | D96: 8 | E96: h | G96: 25.9013 | J96: =D96*G96 -> 207.2104
D97: Custo horário total de mão de obra | J97: =SUM(J95:J96) -> 372.2616
D98: Custo horário total de execução | J98: =J93+J97 -> 372.2616
D99: Custo unitário de execução | J99: =J98/I87 -> 372.2616
H100: Custo do FIC | J100: -
H101: Custo do FIT | J101: -
B102: C - MATERIAL | D102: Quantidade | E102: Unidade | G102: Preço Unitário | H102: Custo Unitário
B103: M0053 | C103: Tela plástica em polipropileno na cor laranja para tapume - L = 1,2 m | D103: 100 | E103: m | G103: 1.8223 | J103: =D103*G103 -> 182.23 | L103: =VLOOKUP(A84,ORÇAMENTO!A$11:L$42,6,FALSE) -> SERV | M103: =J103*L103 -> 
B104: - | C104: 0 | D104: 0 | E104: 0 | G104: 0 | J104: =D104*G104 -> 0 | L104: =VLOOKUP(A84,ORÇAMENTO!A$11:L$42,6,FALSE) -> SERV | M104: =J104*L104 -> 
D105: Custo unitário total de material | J105: =SUM(J103:J104) -> 182.23
B106: D - ATIVIDADES AUXILIARES | D106: Quantidade | E106: Unidade | G106: Custo Unitário | H106: Custo Unitário
B107: 10775 | C107: Locação de container 2,30 X 6,00 m, alt. 2,50 m, com 1 sanitário, para escritório, completo, sem divisórias internas | D107: 6 | E107: mês | G107: 985 | J107: =D107*G107 -> 5910
B108: 10779 | C108: Locação de container 2,30 X 4,30 m, alt. 2,50 M, p/ sanitário, c/ 5 bacias, 1 lavatório e 4 mictórios | D108: 6 | E108: mês | G108: 1231.25 | J108: =D108*G108 -> 7387.5
D109: Custo total de atividades auxiliares | J109: =SUM(J107:J108) -> 13297.5
H110: Subtotal | J110: =J99+J105+J109 -> 13851.9916
B111: E - TEMPO FIXO | D111: Código | E111: Quantidade | F111: Unidade | H111: Custo Unitário | I111: Custo Unitário
B112: - | C112: 0 | D112: - | E112: 0 | F112: t | H112: 0 | J112: =ROUNDDOWN(E112*H112,4) -> 0
B113: - | C113: 0 | D113: - | E113: 0 | F113: t | H113: 0 | J113: =ROUNDDOWN(E113*H113,4) -> 0
D114: Custo unitário total de tempo fixo | J114: =SUM(J112:J113) -> 0
B115: F - MOMENTO DE TRANSPORTE | D115: Quantidade | E115: Unidade | F115: DMT | J115: Custo Unitário
F116: LN | G116: RP | H116: P
B117: - | C117: 0 | D117: 0 | E117: tkm
B118: - | C118: 0 | D118: 0 | E118: tkm
D119: Custo unitário total de transporte
F120: Custo unitário direto total | J120: =TRUNC(J110+J114,2) -> 13851.99
B121: Obs.
A123: =A84+1 -> 4 | B123: 1ª/GRD | K123: =J161 -> 349.69
B124: OBRA: | C124: PAVIMENTAÇÃO ASFÁLTICA EM CBUQ - VIAS DIVERSAS - BAIRROS: N. SRA. DO ROSÁRIO, CÍCERO PASSOS E COMUNIDADE PERNAMBUCO - PIRAPORA-MG
B125: Custo Unitário de Referência | E125: Minas Gerais
E126: Outubro/2024 | H126: Produção da equipe | I126: 1 | J126: =VLOOKUP(A123,ORÇAMENTO!$A$10:$L$42,7,1) -> M2
B127: 103689 | C127: PLACA DE OBRA EM CHAPA DE AÇO GALVANIZADO | I127: Valores em reais (R$)
B128: A - EQUIPAMENTOS | D128: Quantidade | E128: Utilização | G128: Custo Horário | J128: Custo
E129: Operativa | F129: Improdutiva | G129: Produtivo | H129: Improdutivo | J129: Horário Total
B130: - | C130: 0 | G130: 0 | H130: 0 | J130: =D130*(E130*G130+F130*H130) -> 0
B131: - | C131: 0 | G131: 0 | H131: 0 | J131: =D131*(E131*G131+F131*H131) -> 0
H132: Custo horário total de equipamentos | J132: =SUM(J130:J131) -> 0
B133: B - MÃO DE OBRA | D133: Quantidade | E133: Unidade | G133: Custo Horário | H133: Custo Horário Total
B134: P9824 | C134: Servente | D134: 1.1186 | E134: h | G134: 20.6314 | J134: =D134*G134 -> 23.07828404
B135: P9808 | C135: Carpinteiro | D135: 0.3729 | E135: h | G135: 25.9013 | J135: =D135*G135 -> 9.65859477
D136: Custo horário total de mão de obra | J136: =SUM(J134:J135) -> 32.73687881
D137: Custo horário total de execução | J137: =J132+J136 -> 32.73687881
D138: Custo unitário de execução | J138: =J137/I126 -> 32.73687881
H139: Custo do FIC | J139: -
H140: Custo do FIT | J140: -
B141: C - MATERIAL | D141: Quantidade | E141: Unidade | G141: Preço Unitário | H141: Custo Unitário
B142: M1358 | C142: Sarrafo em madeira de terceira - E = 2,5 cm e L = 5 cm | D142: 6.4166 | E142: m | G142: 2.05 | J142: =D142*G142 -> 13.15403 | L142: =VLOOKUP(A$123,ORÇAMENTO!A$11:L$42,6,FALSE) -> SERV | M142: =J142*L142 -> 
B143: M1205 | C143: Prego de ferro | D143: 0.0245 | E143: kg | G143: 16.54 | J143: =D143*G143 -> 0.40523 | L143: =VLOOKUP(A$123,ORÇAMENTO!A$11:L$42,6,FALSE) -> SERV | M143: =J143*L143 -> 
B144: M0998 | C144: Madeira estrutural de eucalipto | D144: 0.022608 | E144: m³ | G144: 2361.8182 | J144: =D144*G144 -> 53.39598587 | L144: =VLOOKUP(A$123,ORÇAMENTO!A$11:L$42,6,FALSE) -> SERV
B145: 4813 | C145: Placa de obra (para construção civil) em chapa galvanizada *N. 22*, adesivada, de *2,4 X 1,2* m (sem postes para fixação) | D145: 1 | E145: m² | G145: 250 | J145: 250 | L145: =VLOOKUP(A$123,ORÇAMENTO!A$11:L$42,6,FALSE) -> SERV
D146: Custo unitário total de material | J146: =SUM(J142:J145) -> 316.9552459
B147: D - ATIVIDADES AUXILIARES | D147: Quantidade | E147: Unidade | G147: Custo Unitário | H147: Custo Unitário
B148: - | C148: 0 | D148: 0 | E148: 0 | G148: 0 | J148: =D148*G148 -> 0
B149: - | C149: 0 | D149: 0 | E149: 0 | G149: 0 | J149: =D149*G149 -> 0
D150: Custo total de atividades auxiliares | J150: =SUM(J148:J149) -> 0
H151: Subtotal | J151: =J138+J146+J150 -> 349.6921247
B152: E - TEMPO FIXO | D152: Código | E152: Quantidade | F152: Unidade | H152: Custo Unitário | I152: Custo Unitário
B153: - | C153: 0 | D153: - | E153: 0 | F153: t | H153: 0 | J153: =ROUNDDOWN(E153*H153,4) -> 0
B154: - | C154: 0 | D154: - | E154: 0 | F154: t | H154: 0 | J154: =ROUNDDOWN(E154*H154,4) -> 0
D155: Custo unitário total de tempo fixo | J155: =SUM(J153:J154) -> 0
B156: F - MOMENTO DE TRANSPORTE | D156: Quantidade | E156: Unidade | F156: DMT | J156: Custo Unitário
F157: LN | G157: RP | H157: P
B158: - | C158: 0 | D158: 0 | E158: tkm
B159: - | C159: 0 | D159: 0 | E159: tkm
D160: Custo unitário total de transporte
F161: Custo unitário direto total | J161: =TRUNC(J151+J155,2) -> 349.69
B162: Obs.
A164: 6 | B164: 1ª/GRD | K164: =J202 -> 0.48
B165: OBRA: | C165: PAVIMENTAÇÃO ASFÁLTICA EM CBUQ - VIAS DIVERSAS - BAIRROS: N. SRA. DO ROSÁRIO, CÍCERO PASSOS E COMUNIDADE PERNAMBUCO - PIRAPORA-MG
B166: Custo Unitário de Referência | E166: Minas Gerais
E167: Outubro/2024 | H167: Produção da equipe | I167: 1 | J167: =VLOOKUP(A164,ORÇAMENTO!$A$10:$L$42,7,1) -> M2
B168: 78472 | C168: SERVIÇOS TOPOGRÁFICOS PARA PAVIMENTAÇÃO, INCLUSIVE LEVANTAMENTO PLANIALTIMÉTRICO CADASTRAL, GERAÇÃO DE NOTAS DE SERVIÇO, SEÇÕES TRANSVERSAIS E GREIDE, ESTAQUEAMENTO E ACOMPANHAMENTO EXECUTIVO | I168: Valores em reais (R$)
B169: A - EQUIPAMENTOS | D169: Quantidade | E169: Utilização | G169: Custo Horário | J169: Custo
E170: Operativa | F170: Improdutiva | G170: Produtivo | H170: Improdutivo | J170: Horário Total
B171: 92145 | C171: Caminhonete cabine simples com motor 1.6 flex, câmbio manual, potência 101/104 cv, 2 portas | D171: 0.0005 | E171: 1 | F171: 0 | G171: 76.5 | H171: 0 | J171: =D171*(E171*G171+F171*H171) -> 0.03825
B172: - | C172: 0 | D172: 0 | E172: 1 | F172: 0 | G172: 0 | H172: 0 | J172: =D172*(E172*G172+F172*H172) -> 0
H173: Custo horário total de equipamentos | J173: =SUM(J171:J172) -> 0.03825
B174: B - MÃO DE OBRA | D174: Quantidade | E174: Unidade | G174: Custo Horário | H174: Custo Horário Total
B175: P9949 | C175: Topógrafo | D175: 1.590909091e-05 | E175: mês | G175: 6687.3099 | H175: 27.86379125 | J175: =D175*G175 -> 0.1063890211
B176: P9950 | C176: Auxiliar de topografia | D176: 1.590909091e-05 | E176: mês | G176: 6143.6953 | H176: 22.75442704 | J176: =D176*G176 -> 0.09774060705
B177: P9824 | C177: Servente | D177: 0.0075 | E177: h | G177: 20.6314 | H177: 0.08596416667 | J177: =D177*G177 -> 0.1547355
B178: P9848 | C178: Desenhista | D178: 9.090909091e-06 | E178: mês | G178: 9985.8702 | H178: 36.98470444 | J178: =D178*G178 -> 0.09078063818
D179: Custo horário total de mão de obra | J179: =SUM(J175:J178) -> 0.4496457664
D180: Custo horário total de execução | J180: =J173+J179 -> 0.4878957664
D181: Custo unitário de execução | J181: =J180/I167 -> 0.4878957664
H182: Custo do FIC | J182: -
H183: Custo do FIT | J183: -
B184: C - MATERIAL | D184: Quantidade | E184: Unidade | G184: Preço Unitário | H184: Custo Unitário
B185: - | C185: 0 | D185: 0 | E185: 0 | G185: 0 | J185: =D185*G185 -> 0 | L185: =VLOOKUP(A$164,ORÇAMENTO!A$11:L$42,6,FALSE) -> SERV | M185: =J185*L185 -> 
B186: - | C186: 0 | D186: 0 | E186: 0 | G186: 0 | J186: 0 | L186: =VLOOKUP(A$164,ORÇAMENTO!A$11:L$42,6,FALSE) -> SERV | M186: =J186*L186 -> 
D187: Custo unitário total de material | J187: =SUM(J185:J186) -> 0
B188: D - ATIVIDADES AUXILIARES | D188: Quantidade | E188: Unidade | G188: Custo Unitário | H188: Custo Unitário
B189: - | C189: 0 | D189: 0 | E189: 0 | G189: 0 | J189: =D189*G189 -> 0
B190: - | C190: 0 | D190: 0 | E190: 0 | G190: 0 | J190: =D190*G190 -> 0
D191: Custo total de atividades auxiliares | J191: =SUM(J189:J190) -> 0
H192: Subtotal | J192: =J181+J187+J191 -> 0.4878957664
B193: E - TEMPO FIXO | D193: Código | E193: Quantidade | F193: Unidade | H193: Custo Unitário | I193: Custo Unitário
B194: - | C194: 0 | D194: - | E194: 0 | F194: t | H194: 0 | J194: =ROUNDDOWN(E194*H194,4) -> 0
B195: - | C195: 0 | D195: - | E195: 0 | F195: t | H195: 0 | J195: =ROUNDDOWN(E195*H195,4) -> 0
D196: Custo unitário total de tempo fixo | J196: =SUM(J194:J195) -> 0
B197: F - MOMENTO DE TRANSPORTE | D197: Quantidade | E197: Unidade | F197: DMT | J197: Custo Unitário
F198: LN | G198: RP | H198: P
B199: - | C199: 0 | D199: 0 | E199: tkm
B200: - | C200: 0 | D200: 0 | E200: tkm
D201: Custo unitário total de transporte
F202: Custo unitário direto total | J202: =TRUNC(J192+J196,2) -> 0.48
B203: Obs.
A205: =A164+1 -> 7 | B205: 1ª/GRD | K205: =J241 -> 6.59
... 1482 more rows

Sheet CPU-FORNEC
A1: 1 | B1: CODEVASF | E1: COMPOSIÇÃO DE PREÇO UNITÁRIO | I1: =H24 -> 0 | J1: =H26 -> 0 | K1: BDI CALCULADO: | M1: =ORÇAMENTO!L6 -> 15
B2: OBRA: | C2: =ORÇAMENTO!C5 -> PAVIMENTAÇÃO ASFÁLTICA EM CBUQ - VIAS DIVERSAS - BAIRROS: N. SRA. DO ROSÁRIO, CÍCERO PASSOS E COMUNIDADE PERNAMBUCO - PIRAPORA-MG | G2: DATA: | H2: =ORÇAMENTO!C6 -> JANEIRO / 2025 | K2: BDI DIFERENCIADO: | M2: ='BDI FORN'!D31/100 -> 0.15
B3: SERVIÇO: | C3: =VLOOKUP(A1,ORÇAMENTO!A11:L30,3) -> CPU.1 | E3: Referência: | F3: =VLOOKUP(A1,ORÇAMENTO!$A$11:$L$30,4) -> CODEVASF | G3: UNIDADE: | H3: =VLOOKUP(A1,ORÇAMENTO!A11:L30,5) -> MOBILIZAÇÃO E DESMOBILIZAÇÃO
B5: TIPO ITEM | C5: CODIGO ITEM | D5: DESCRIÇÃO ITEM | E5: UNIDADE ITEM | F5: COEFICIENTE | G5: PRECO UNITARIO | H5: CUSTO TOTAL | J5: distancia = | K5: 90 | L5: B.DESPACHO
B6: EQUIPAMENTOS | J6: Pá carregadeira | M6: 10.1 | N6: ton
C7: E9001 | D7: =VLOOKUP(C7,#REF!,1,2) ->  | E7: =VLOOKUP(C7,#REF!,1,3) ->  | G7: =VLOOKUP(C7,#REF!,1,3) -> 
B10: MÃO DE OBRA
B14: MATERIAIS
H17: =ROUNDDOWN(F17*G17,2) -> 0 | J17: Motoniveladora | M17: 12.47 | N17: ton
B18: ATIVIDADES AUXILIARES | J18: Trator de pneus | M18: 2.8 | N18: ton
H19: =ROUNDDOWN(F19*G19,2) -> 0
H20: 0
H21: 0
H22: =ROUNDDOWN(F22*G22,2) -> 0 | J22: Rolo Compactador | M22: 15.33 | N22: ton
B23: PRODUÇÃO DA EQUIPE | E23: 1 | F23: CUSTO | H23: =SUM(H6:H22) -> 0 | J23: Grade de disco | M23: 1 | N23: ton
B24: TOTAL | H24: =H23/E23 -> 0 | I24: OK | J24: RETROESCAVADEIRA | M24: 6.67 | N24: ton
B25: BDI % | H25: =1+$M$1 -> 16
B26: TOTAL DO SERVIÇO - R$ | H26: =ROUND(H24*H25,2) -> 0
A28: F1 | B28: CODEVASF | E28: COMPOSIÇÃO DE PREÇO UNITÁRIO | I28: =H35 -> 3275.67 | J28: =H37 -> 3767.02
B29: OBRA: | C29: =$C$2 -> PAVIMENTAÇÃO ASFÁLTICA EM CBUQ - VIAS DIVERSAS - BAIRROS: N. SRA. DO ROSÁRIO, CÍCERO PASSOS E COMUNIDADE PERNAMBUCO - PIRAPORA-MG | G29: DATA: | H29: =$H$2 -> JANEIRO / 2025
B30: SERVIÇO: | C30: =VLOOKUP(A28,ORÇAMENTO!$A$11:$L$49,5) -> AQUISIÇÃO DE EMULSÃO ASFÁLTICA PARA IMPRIMAÇÃO (EAI) - EXCLUSIVE TRANSPORTE | E30: Referência: | F30: =VLOOKUP(A28,ORÇAMENTO!$A$11:$L$49,4) -> ANP | G30: UNIDADE: | H30: =VLOOKUP(A28,ORÇAMENTO!$A$11:$L$49,7) -> T
B32: TIPO ITEM | C32: CODIGO ITEM | D32: DESCRIÇÃO ITEM | E32: UNIDADE ITEM | F32: COEFICIENTE | G32: PRECO UNITARIO | H32: CUSTO TOTAL
B33: INSUMO | C33: ANP | D33: EMULSÃO ASFÁLTICA PARA SERVIÇO DE IMPRIMAÇÃO (MEMÓRIA EM ANEXO) | E33: T | F33: 1 | G33: =MAT.ASF!V21 -> 3275.671808 | H33: =ROUNDDOWN(F33*G33,2) -> 3275.67
B34: PRODUÇÃO DA EQUIPE | E34: 1 | F34: CUSTO | H34: =SUM(H33:H33) -> 3275.67
B35: TOTAL | H35: =H34/E34 -> 3275.67
B36: BDI % | H36: =1+$M$2 -> 1.15
B37: TOTAL DO SERVIÇO - R$ | H37: =ROUND(H35*H36,2) -> 3767.02 | I37: OK
A39: F2 | B39: CODEVASF | E39: COMPOSIÇÃO DE PREÇO UNITÁRIO | I39: =H46 -> 323.18 | J39: =H48 -> 371.66
B40: OBRA: | C40: =$C$2 -> PAVIMENTAÇÃO ASFÁLTICA EM CBUQ - VIAS DIVERSAS - BAIRROS: N. SRA. DO ROSÁRIO, CÍCERO PASSOS E COMUNIDADE PERNAMBUCO - PIRAPORA-MG | G40: DATA: | H40: =$H$2 -> JANEIRO / 2025
B41: SERVIÇO: | C41: =VLOOKUP(A39,ORÇAMENTO!$A$11:$L$49,5) -> TRANSPORTE DE EMULSÃO ASFÁLTICA PARA IMPRIMAÇÃO (EAI) | E41: Referência: | F41: =VLOOKUP(A39,ORÇAMENTO!$A$11:$L$49,4) -> CODEVASF | G41: UNIDADE: | H41: =VLOOKUP(A39,ORÇAMENTO!$A$11:$L$49,7) -> T
B43: TIPO ITEM | C43: CODIGO ITEM | D43: DESCRIÇÃO ITEM | E43: UNIDADE ITEM | F43: COEFICIENTE | G43: PRECO UNITARIO | H43: CUSTO TOTAL
B44: INSUMO | C44: - | D44: TRANSPORTE DE EMULSÃO ASFÁLTICA PARA IMPRIMAÇÃO (EAI), INCLUINDO CUSTO TOTAL DO TRANSPORTE (COMBUSTÍVEL, PEDÁGIOS, ETC.) E ICMS - MEMÓRIA ANEXA | E44: T | F44: 1 | G44: =MAT.ASF!U21 -> 323.185 | H44: =ROUNDDOWN(F44*G44,2) -> 323.18
B45: PRODUÇÃO DA EQUIPE | E45: 1 | F45: CUSTO | H45: =SUM(H44:H44) -> 323.18
B46: TOTAL | H46: =H45/E45 -> 323.18
B47: BDI % | H47: =1+$M$2 -> 1.15
B48: TOTAL DO SERVIÇO - R$ | H48: =ROUND(H46*H47,2) -> 371.66 | I48: OK
A50: F3 | B50: CODEVASF | E50: COMPOSIÇÃO DE PREÇO UNITÁRIO | I50: =H57 -> 3478 | J50: =H59 -> 3999.7
B51: OBRA: | C51: =$C$2 -> PAVIMENTAÇÃO ASFÁLTICA EM CBUQ - VIAS DIVERSAS - BAIRROS: N. SRA. DO ROSÁRIO, CÍCERO PASSOS E COMUNIDADE PERNAMBUCO - PIRAPORA-MG | G51: DATA: | H51: =$H$2 -> JANEIRO / 2025
B52: SERVIÇO: | C52: =VLOOKUP(A50,ORÇAMENTO!$A$11:$L$49,5) -> AQUISIÇÃO DE EMULSAO ASFALTICA CATIONICA RR-1C - EXCLUSIVE TRANSPORTE | E52: Referência: | F52: =VLOOKUP(A50,ORÇAMENTO!$A$11:$L$49,4) -> ANP | G52: UNIDADE: | H52: =VLOOKUP(A50,ORÇAMENTO!$A$11:$L$49,7) -> T
B54: TIPO ITEM | C54: CODIGO ITEM | D54: DESCRIÇÃO ITEM | E54: UNIDADE ITEM | F54: COEFICIENTE | G54: PRECO UNITARIO | H54: CUSTO TOTAL
B55: INSUMO | C55: ANP | D55: EMULSÃO ASFÁLTICA CATIÔNICA RR-1C(MEMÓRIA EM ANEXO) | E55: T | F55: 1 | G55: =MAT.ASF!V28 -> 3478.006392 | H55: =ROUNDDOWN(F55*G55,2) -> 3478
B56: PRODUÇÃO DA EQUIPE | E56: 1 | F56: CUSTO | H56: =SUM(H55:H55) -> 3478
B57: TOTAL | H57: =H56/E56 -> 3478 | I57: OK
B58: BDI % | H58: =1+$M$2 -> 1.15
B59: TOTAL DO SERVIÇO - R$ | H59: =ROUND(H57*H58,2) -> 3999.7
A61: F4 | B61: CODEVASF | E61: COMPOSIÇÃO DE PREÇO UNITÁRIO | I61: =H68 -> 338.96 | J61: =H70 -> 389.8
B62: OBRA: | C62: =$C$2 -> PAVIMENTAÇÃO ASFÁLTICA EM CBUQ - VIAS DIVERSAS - BAIRROS: N. SRA. DO ROSÁRIO, CÍCERO PASSOS E COMUNIDADE PERNAMBUCO - PIRAPORA-MG | G62: DATA: | H62: =$H$2 -> JANEIRO / 2025
B63: SERVIÇO: | C63: =VLOOKUP(A61,ORÇAMENTO!$A$11:$L$49,5) -> TRANSPORTE DE EMULSÃO ASFÁLTICA CATIONICA RR-1C | E63: Referência: | F63: =VLOOKUP(A61,ORÇAMENTO!$A$11:$L$49,4) -> CODEVASF | G63: UNIDADE: | H63: =VLOOKUP(A61,ORÇAMENTO!$A$11:$L$49,7) -> T
B65: TIPO ITEM | C65: CODIGO ITEM | D65: DESCRIÇÃO ITEM | E65: UNIDADE ITEM | F65: COEFICIENTE | G65: PRECO UNITARIO | H65: CUSTO TOTAL
B66: INSUMO | C66: - | D66: TRANSPORTE DE EMULSÃO ASFÁLTICA CATIONICA TIPO RR-1C, INCLUINDO CUSTO TOTAL DO TRANSPORTE (COMBUSTÍVEL, PEDÁGIOS, ETC.) E ICMS - MEMÓRIA ANEXA | E66: T | F66: 1 | G66: =MAT.ASF!U28 -> 338.96 | H66: =ROUNDDOWN(F66*G66,2) -> 338.96
B67: PRODUÇÃO DA EQUIPE | E67: 1 | F67: CUSTO | H67: =SUM(H66:H66) -> 338.96
B68: TOTAL | H68: =H67/E67 -> 338.96 | I68: OK
B69: BDI % | H69: =1+$M$2 -> 1.15
B70: TOTAL DO SERVIÇO - R$ | H70: =ROUND(H68*H69,2) -> 389.8
A72: F5 | B72: CODEVASF | E72: COMPOSIÇÃO DE PREÇO UNITÁRIO | I72: =H79 -> 4719.13 | J72: =H81 -> 5427
B73: OBRA: | C73: =$C$2 -> PAVIMENTAÇÃO ASFÁLTICA EM CBUQ - VIAS DIVERSAS - BAIRROS: N. SRA. DO ROSÁRIO, CÍCERO PASSOS E COMUNIDADE PERNAMBUCO - PIRAPORA-MG | G73: DATA: | H73: =$H$2 -> JANEIRO / 2025
B74: SERVIÇO: | C74: =VLOOKUP(A72,ORÇAMENTO!$A$11:$L$49,5) -> AQUISIÇÃO DE CONCRETO ASFÁLTICO DE PETRÓLEO - CAP 50/70 - EXCLUSIVE TRANSPORTE | E74: Referência: | F74: =VLOOKUP(A72,ORÇAMENTO!$A$11:$L$49,4) -> ANP | G74: UNIDADE: | H74: =VLOOKUP(A72,ORÇAMENTO!$A$11:$L$49,7) -> T
B76: TIPO ITEM | C76: CODIGO ITEM | D76: DESCRIÇÃO ITEM | E76: UNIDADE ITEM | F76: COEFICIENTE | G76: PRECO UNITARIO | H76: CUSTO TOTAL
B77: INSUMO | C77: 1518 | D77: CIMENTOS ASFÁLTICO DE PETRÓLEO TIPO CAP 50/70 (MEMÓRIA EM ANEXO) | E77: T | F77: 1 | G77: =MAT.ASF!V14 -> 4719.134009 | H77: =ROUNDDOWN(F77*G77,2) -> 4719.13
B78: PRODUÇÃO DA EQUIPE | E78: 1 | F78: CUSTO | H78: =SUM(H77:H77) -> 4719.13
B79: TOTAL | H79: =H78/E78 -> 4719.13
B80: BDI % | H80: =1+$M$2 -> 1.15
B81: TOTAL DO SERVIÇO - R$ | H81: =ROUND(H79*H80,2) -> 5427
A83: F6 | B83: CODEVASF | E83: COMPOSIÇÃO DE PREÇO UNITÁRIO | I83: =H90 -> 380.75 | J83: =H92 -> 437.86
B84: OBRA: | C84: =$C$2 -> PAVIMENTAÇÃO ASFÁLTICA EM CBUQ - VIAS DIVERSAS - BAIRROS: N. SRA. DO ROSÁRIO, CÍCERO PASSOS E COMUNIDADE PERNAMBUCO - PIRAPORA-MG | G84: DATA: | H84: =$H$2 -> JANEIRO / 2025
B85: SERVIÇO: | C85: =VLOOKUP(A83,ORÇAMENTO!$A$11:$L$49,5) -> TRANSPORTE DE CONCRETO ASFÁLTICO DE PETRÓLEO - CAP 50/70 | E85: Referência: | F85: =VLOOKUP(A83,ORÇAMENTO!$A$11:$L$49,4) -> CODEVASF | G85: UNIDADE: | H85: =VLOOKUP(A83,ORÇAMENTO!$A$11:$L$49,7) -> T
B87: TIPO ITEM | C87: CODIGO ITEM | D87: DESCRIÇÃO ITEM | E87: UNIDADE ITEM | F87: COEFICIENTE | G87: PRECO UNITARIO | H87: CUSTO TOTAL
B88: INSUMO | C88: - | D88: TRANSPORTE DE CIMENTO ASFÁLTICO DE PETRÓLEO TIPO CAP 50-70, INCLUINDO CUSTO TOTAL DO TRANSPORTE (COMBUSTÍVEL, PEDÁGIOS, ETC.) E ICMS - MEMÓRIA ANEXA | E88: T | F88: 1 | G88: =MAT.ASF!U14 -> 380.7518182 | H88: =ROUNDDOWN(F88*G88,2) -> 380.75
B89: PRODUÇÃO DA EQUIPE | E89: 1 | F89: CUSTO | H89: =SUM(H88:H88) -> 380.75
B90: TOTAL | H90: =H89/E89 -> 380.75
B91: BDI % | H91: =1+$M$2 -> 1.15
B92: TOTAL DO SERVIÇO - R$ | H92: =ROUND(H90*H91,2) -> 437.86

Sheet BDI SERV
B1: DETALHAMENTO DO BDI - SERVIÇOS
B4: Item | C4: Descrição dos Serviços | D4: % - PV | E4: % - CD
B6: 1 | C6: ADMINISTRAÇÃO CENTRAL | E6: =SUM(E7:E9) -> 4.01
B7: 1.1 | C7: ESCRITÓRIO CENTRAL | E7: 4.01
B8: 1.2 | C8: VIAGENS
B9: 1.3 | C9: OUTROS
B11: 2 | C11: IMPOSTOS E TAXAS | D11: =SUM(D12:D15) -> 6.15 | E11: =SUM(E12:E15) -> 0
B12: 2.1 | C12: ISS - Proposta | D12: =D34*100 -> 2.5
B13: 2.2 | C13: PIS | D13: 0.65
B14: 2.3 | C14: Cofins | D14: 3
B15: 2.4 | C15: Contribuição Previdenciaria (CPRB)
B17: 3 | C17: TAXA DE RISCO | E17: =SUM(E18:E20) -> 0.96
B18: 3.1 | C18: SEGURO | E18: 0.2
B19: 3.2 | C19: RISCO | E19: 0.56
B20: 3.3 | C20: GARANTIA | E20: 0.2
B22: 4 | C22: DESPESAS FINANCEIRAS | E22: 1.11
B24: 5 | C24: LUCRO | E24: 7.3
B26: BDI APRESENTADO: | E26: =IF($D$41=$C$43,$D$43,IF($D$41=$C$44,$D$44,IF($D$41=$C$44,$D$44,IF($D$41=$C$45,$D$45,0)))) -> 21.35
C28: Legislação Municipal: | D28: Lei Complementar nº 1.815/2005
C29: Município: | D29: Pirapora
C30: Alíquota ISSQN: | D30: 0.05 | E30: Município
C31: Base de Cálculo: | D31: 0.5 | E31: Art. 106 §2º
C32: Valor Serviço: | D32: 2293172.05
C33: Dedução - Material (estimado): | D33: 0 | E33: =D33/D32 -> 0
C34: ISSQN BDI: | D34: =IF(D32="",0,ROUND(IF(D31=D49,((1-(D33/D32))*D30),D30*D31),4)) -> 0.025 | E34: (*)
A36: Acórdão nº 2.622/2013 - TCU Plenário
A37: BDI = ARRED((((((1+(AC+TR)/100)*(1+DF/100)*(1+L/100))/(1-IMP/100))-1)*100);2)
B39: (*) É obrigação da licitante a verificação da Legislação Tributária vigente no município, bem como o cálculo dos valores totais de serviços e materiais estimados, para apresentação de sua proposta.
C41: Forma de Cálculo do BDI: | D41: BDI - Acórdão nº 2.622/2013 - TCU
C43: BDI - Digitado | D43: =ROUND(E6+E11+E17+E22+E24,2) -> 13.38
C44: BDI - Calculado | D44: =ROUND((((1+(E6/100+E22/100+E17/100))/(1-(D11/100+E24/100)))-1)*100,2) -> 22.56
C45: BDI - Acórdão nº 2.622/2013 - TCU | D45: =ROUND((((((1+(E6+E17)/100)*(1+E22/100)*(1+E24/100))/(1-D11/100))-1)*100),2) -> 21.35
D49: Dedução - Material | E49: Município
D50: 0.1 | E50: Simples Nacional
D51: 0.2 | E51: Municípios Indefinidos
D52: 0.3
D53: 0.4
D54: 0.5
D55: 0.6
D56: 0.7
D57: 0.8
D58: 0.9
D59: 1
D60: =E31 -> Art. 106 §2º

Sheet BDI FORN
B1: DETALHAMENTO DO BDI - FORNECIMENTO (MATERIAL ASFÁLTICO)
B4: Item | C4: Descrição dos Serviços | D4: % | E4: %
D5: PV | E5: CD
B7: 1 | C7: ADMINISTRAÇÃO CENTRAL | E7: 3.45
B8: 1.1 | C8: ESCRITÓRIO CENTRAL
B9: 1.2 | C9: VIAGENS
B10: 1.3 | C10: OUTROS
B12: 2 | C12: IMPOSTOS E TAXAS | D12: =SUM(D13:D16) -> 3.65 | E12: =SUM(E13:E16) -> 4.56
B13: 2.1 | C13: ISS (*) | E13: =ROUND(D13*1.2515,2) -> 0
B14: 2.2 | C14: PIS | D14: 0.65 | E14: =ROUND(D14*1.2515,2) -> 0.81
B15: 2.3 | C15: Cofins | D15: 3 | E15: =ROUND(D15*1.2515,2) -> 3.75
B16: 2.4 | C16: CONTRIBUIÇÃO PREVIDENCIÁRIA SOBRE A RENDA BRUTA | D16: 0 | E16: =ROUND(D16*1.2515,2) -> 0
B18: 3 | C18: TAXA DE RISCO | E18: =SUM(E19:E22) -> 1.08
B19: 3.1 | C19: SEGURO | E19: 0.24
B20: 3.2 | C20: RISCO | E20: 0.6
B21: 3.3 | C21: GARANTIA | E21: 0.24
B23: 4 | C23: DESPESAS FINANCEIRAS | E23: 0.85
B25: 5 | C25: LUCRO | E25: 5.11
C27: BDI - CALCULADO | E27: =ROUND((((1+(E7+E18)/100)*(1+E23/100)*(1+E25/100)/(1-D12/100)-1)*100),2) -> 15
A29: BDI = ((1+((AC+S+R+G)/100))x(1+DF/100)x(1+L/100)/(1-I/100)-1)*100
B31: BDI (CALCULADO): | D31: =ROUND((((1+((E7+E18)/100))*(1+E23/100)*(1+E25/100))/(1-D12/100)-1)*100,2) -> 15 | E31: %
A37: BDI EM CONFORMIDADE COM OS ACÓRDÃOS Nº 2369/2011 e ACÓRDÃO Nº 2.622/2013 - TCU - PLENÁRIO

Sheet CRONOGRAMA
B1: CRONOGRAMA FÍSICO-FINANCEIRO
B2: OBRA: | C2: =ORÇAMENTO!C5 -> PAVIMENTAÇÃO ASFÁLTICA EM CBUQ - VIAS DIVERSAS - BAIRROS: N. SRA. DO ROSÁRIO, CÍCERO PASSOS E COMUNIDADE PERNAMBUCO - PIRAPORA-MG | F2: VALOR: | G2: =ORÇAMENTO!L42 -> 3597621.87
F3: PRAZO: | G3: 180 DIAS
B5: ITEM | C5: ETAPAS/DESCRIÇAO | D5: FISICO/ FINANCEIRO | E5: TOTAL ETAPAS | F5: MÊS 1 | G5: MÊS 2 | H5: MÊS 3 | I5: MÊS 4 | J5: MÊS 5 | K5: MÊS 6 | L5: TOTAL
A6: A | B6: =VLOOKUP(A6,ORÇAMENTO!$A$10:$L$42,2) -> 1 | C6: =VLOOKUP(A6,ORÇAMENTO!$A$10:$L$42,5) -> SERVIÇOS PRELIMINARES | D6: FISICO | E6: =ROUND(E7/$G$2,4) -> 0.064 | F6: 0.25 | G6: 0.15 | H6: 0.15 | I6: 0.15 | J6: 0.15 | K6: 0.15 | L6: =SUM(F6:K6) -> 1
D7: FINANCEIRO | E7: =ORÇAMENTO!L10 -> 230323.19 | F7: =ROUND($E$7*F6,2) -> 57580.8 | G7: =ROUND($E$7*G6,2) -> 34548.48 | H7: =ROUND($E$7*H6,2) -> 34548.48 | I7: =ROUND($E$7*I6,2) -> 34548.48 | J7: 34548.48 | K7: 34548.48 | L7: =SUM(F7:K7) -> 230323.2
A8: B | B8: =VLOOKUP(A8,ORÇAMENTO!$A$10:$L$42,2) -> 2 | C8: =VLOOKUP(A8,ORÇAMENTO!$A$10:$L$42,5) -> TERRAPLANAGEM E PAVIMENTAÇÃO | D8: FISICO | E8: =ROUND(E9/$G$2,4) -> 0.3354 | F8: 0.1 | G8: 0.2 | H8: 0.2 | I8: 0.2 | J8: 0.2 | K8: 0.1 | L8: =SUM(F8:K8) -> 1
D9: FINANCEIRO | E9: =ORÇAMENTO!L16 -> 1206500.4 | F9: =ROUND($E$9*F8,2) -> 120650.04 | G9: =ROUND($E$9*G8,2) -> 241300.08 | H9: =ROUND($E$9*H8,2) -> 241300.08 | I9: =ROUND($E$9*I8,2) -> 241300.08 | J9: 241300.08 | K9: 120650.04 | L9: =SUM(F9:K9) -> 1206500.4
A10: C | B10: =VLOOKUP(A10,ORÇAMENTO!$A$10:$L$42,2) -> 3 | C10: =VLOOKUP(A10,ORÇAMENTO!$A$10:$L$42,5) -> TRANSPORTE DE MATERIAIS | D10: FISICO | E10: =ROUND(E11/$G$2,4) -> 0.2435 | F10: 0.25 | G10: 0.5 | H10: 0.25 | L10: =SUM(F10:K10) -> 1
D11: FINANCEIRO | E11: =ORÇAMENTO!L23 -> 875905.48 | F11: =ROUND($E$11*F10,2) -> 218976.37 | G11: =ROUND($E$11*G10,2) -> 437952.74 | H11: =ROUND($E$11*H10,2) -> 218976.37 | I11: =ROUND($E$11*I10,2) -> 0 | J11: 0 | K11: 0 | L11: =SUM(F11:K11)-0.04 -> 875905.44
A12: E | B12: =VLOOKUP(A12,ORÇAMENTO!$A$10:$L$42,2) -> 4 | C12: =VLOOKUP(A12,ORÇAMENTO!$A$10:$L$42,5) -> DRENAGEM E OBRAS COMPLEMENTARES | D12: FISICO | E12: =ROUND(E13/$G$2,4) -> 0.1288 | F12: 0.1 | G12: 0.2 | H12: 0.2 | I12: 0.2 | J12: 0.2 | K12: 0.1 | L12: =SUM(F12:K12) -> 1
D13: FINANCEIRO | E13: =ORÇAMENTO!L29 -> 463426.86 | F13: =ROUND($E$13*F12,2) -> 46342.69 | G13: =ROUND($E$13*G12,2) -> 92685.37 | H13: =ROUND($E$13*H12,2) -> 92685.37 | I13: =ROUND($E$13*I12,2) -> 92685.37 | J13: 92685.37 | K13: 46342.69 | L13: =SUM(F13:K13)-0.02 -> 463426.84
A14: F | B14: =VLOOKUP(A14,ORÇAMENTO!$A$10:$L$42,2) -> 5 | C14: =VLOOKUP(A14,ORÇAMENTO!$A$10:$L$42,5) -> FORNECIMENTOS - MATERIAL ASFÁLTICO (BDI DIFERENCIADO) | D14: FISICO | E14: =ROUND(E15/$G$2,4) -> 0.2283 | G14: 0.2 | H14: 0.2 | I14: 0.2 | J14: 0.2 | K14: 0.2 | L14: =SUM(F14:K14) -> 1
D15: FINANCEIRO | E15: =ORÇAMENTO!L35 -> 821465.94 | F15: =ROUND($E$15*F14,2) -> 0 | G15: 164293.19 | H15: 164293.19 | I15: 164293.19 | J15: 164293.19 | K15: 164293.19 | L15: =SUM(F15:K15)-0.02 -> 821465.93
B16: TOTAL | D16: FISICO | E16: =SUM(F16:K16) -> 1.000000006 | F16: =F17/$E$17 -> 0.1232897497 | G16: =G17/$E$17 -> 0.2698393258 | H16: =H17/$E$17 -> 0.2089723482 | I16: =I17/$E$17 -> 0.1481053705 | J16: 0.1481053705 | K16: 0.1016878408 | L16: =SUM(F16:K16) -> 1.000000006
D17: FINANCEIRO | E17: =E11+E9+E7+E15+E13 -> 3597621.87 | F17: =F11+F9+F7+F15+F13 -> 443549.9 | G17: =G11+G9+G7+G15+G13 -> 970779.86 | H17: 751803.49 | I17: 532827.12 | J17: 532827.12 | K17: 365834.4 | L17: =SUM(F17:K17)-0.02 -> 3597621.87
B19: OBSERVAÇÕES:

Sheet EAI
C2: MEMÓRIA DE CÁLCULO
G6: TIPOLOGIA DO MATERIAL | I6: Emulsão Asfáltica para Serviço de Imprimação | M6: IMPOSTOS | N6: COFINS | O6: 0.0065 | P6: 0.0065
G7: ÍNDICE DE PAVIMENTAÇÃO DNIT | H7: 2014-07-01 | I7: ÍNDICE INICIAL | J7: 270.237 | N7: PIS | O7: 0.03 | P7: 0.03 | T7: LEGENDA | AC7: As empresas tributadas pelo Lucro Presumido pagam 0,65% de PIS e 3% de COFINS
H8: =H9 -> 2024-12-01 | I8: ÍNDICE FINAL | J8: 583.334 | N8: ICMS | O8: 0.18 | P8: 0.18 | Q8: =1-(O8/1) -> 0.82 | R8: =1-(P8/1) -> 0.82 | S8: =1-(Q8/1) -> 0.18 | T8: ENTRADA DE DADOS | V8: QUANT.ESTIMADA DE EMULSÃO ASFÁLTICA PARA IMPRIMAÇÃO (TON.): | Z8: =ORÇAMENTO!H36 -> 32 | AA8: TONELADAS | AC8: As empresas tributadas pelo Lucro Real pagam 1,65% de PIS e 7,60% de COFINS
G9: Data ANP | H9: 2024-12-01
C11: DATA-BASE | D11: PRODUTOS | E11: LOCALIDADES | J11: CUSTO ANP (R$/Kg) | L11: CUSTO ANP | M11: IMPOSTOS DO PRODUTO | N11: CUSTO DO PRODUTO COM IMPOSTOS | O11: DMT's | P11: DMT's FLUVIAL | Q11: CUSTO DO TRANSPORTE RODOVIA PAVIMENTADA | R11: CUSTO DO TRANSPORTE FLUVIAL | S11: CUSTO DO TRANSPORTE TOTAL | T11: ICMS | U11: ATUALIZAÇÃO DO CUSTO DE TRANSPORTE | V11: CUSTO DO TRANSPORTE RODOVIA PAVIMENTADA COM IMPOSTOS E ATUALIZAÇÃO MONETÁRIA | W11: PEDÁGIO | Y11: TOTAL TRANSPORTE | Z11: AQUISIÇÃO DO PRODUTO | AA11: TOTAL GERAL ( TRANSP + AQUISIÇÃO) | AC11: 1 | AD11: 2 | AE11: 3
C12: =H8 -> 2024-12-01 | E12: REFINARIAS | F12: ENDEREÇO | G12: ESTADO | H12: CIDADE | I12: DESTINO | J12: ESTADO | K12: REGIÃO | L12: R$/t | M12: R$/t | N12: R$/t | O12: KM | P12: KM | Q12: R$/t | R12: R$/t | S12: R$/t | T12: R$/t | U12: R$/t | V12: R$/t | W12: CUSTO | X12: R$/t | Y12: R$/t | Z12: R$/t | AA12: R$/t | AC12: TOTAL GERAL ( TRANSP + AQUISIÇÃO) | AD12: TOTAL TRANSPORTE | AE12: AQUISIÇÃO DO PRODUTO
B13: =AA13 -> 4693.160118 | C13: 1 | D13: =I6 -> Emulsão Asfáltica para Serviço de Imprimação | E13: Refinaria Abreu e Lima | F13: Rodovia PE 60, Km 10 - Ipojuca - PE CEP:55590-000 | G13: Pernambuco | H13: IPOJUCA - PE | I13: Pirapora - MG | J13: - | K13: 2.666435118 | L13: =IF(AND(J13="-",K13="-"),"",IF(AND(J13<>0,K13="-"),J13*1000,IF(AND(J13="-",K13<>0),K13*1000,IF(AND(J13<>0,K13<>0),J13*1000,"")))) -> 2666.435118 | M13: =ROUND(((L13/(1-$O$6-$O$7-$O$8))-L13),2) -> 736.8 | N13: =L13+M13 -> 3403.235118 | O13: 1796 | Q13: =ROUND((26.939+0.253*O13),2) -> 481.33 | S13: =Q13+R13 -> 481.33 | T13: =TRUNC(S13*($O$8/(1-$O$8)),2) -> 105.65 | U13: =TRUNC(IF($J$7="","",(($J$8-$J$7)/$J$7)*(S13+T13)),2) -> 680.07 | V13: =S13+T13+U13 -> 1267.05 | W13: 183 | X13: =EVEN($Z$8*2/28)*W13/$Z$8 -> 22.875 | Y13: =IF(AND(S13="",T13=""),"",V13+X13) -> 1289.925 | Z13: =IF(OR(L13="",M13=""),"",L13+M13) -> 3403.235118 | AA13: =IF(OR(Y13="",Z13=""),"",Y13+Z13) -> 4693.160118 | AC13: =AA13 -> 4693.160118 | AD13: =Y13 -> 1289.925 | AE13: =Z13 -> 3403.235118 | AH13: =IF(OR(G13=$D$50,G13=$D$51,G13=$D$53,G13=$D$59,G13=$D$43,G13=$D$39,G13=$D$35,G13=$D$48,G13=$D$38),"NORDESTE",IF(OR(G13=$D$34,G13=$D$36,G13=$D$37,G13=$D$47,G13=$D$55,G13=$D$56,G13=$D$60),"NORTE",IF(OR(G13=$D$40,G13=$D$42,G13=$D$44,G13=$D$45),"CENTRO-OESTE",IF(OR(G13=$D$58,G13=$D$52,G13=$D$46,G13=$D$41),"SUDESTE",IF(OR(G13=$D$57,G13=$D$49,G13=$D$54),"SUL",""))))) -> NORDESTE
B14: =AA14 -> 4888.320118 | C14: 2 | E14: Refinaria Potiguar Clara Camarão | F14: Rodovia RN 221, KM 25 - Guamaré - RN CEP:59598-000 | G14: Rio Grande do Norte | H14: GUAMARÉ - RN | I14: =I13 -> Pirapora - MG | J14: - | K14: 2.666435118 | L14: =IF(AND(J14="-",K14=""),"",IF(AND(J14<>0,K14=""),J14*1000,IF(AND(J14="-",K14<>0),K14*1000,IF(AND(J14<>0,K14<>0),J14*1000,"")))) -> 2666.435118 | M14: =ROUND(((L14/(1-$O$6-$O$7-$O$8))-L14),2) -> 736.8 | N14: =L14+M14 -> 3403.235118 | O14: 2089 | Q14: =ROUND((26.939+0.253*O14),2) -> 555.46 | S14: =Q14+R14 -> 555.46 | T14: =TRUNC(S14*($O$8/(1-$O$8)),2) -> 121.93 | U14: =TRUNC(IF($J$7="","",(($J$8-$J$7)/$J$7)*(S14+T14)),2) -> 784.82 | V14: =S14+T14+U14 -> 1462.21 | W14: 183 | X14: =EVEN($Z$8*2/28)*W14/$Z$8 -> 22.875 | Y14: =IF(AND(S14="",T14=""),"",V14+X14) -> 1485.085 | Z14: 3403.235118 | AA14: =IF(OR(Y14="",Z14=""),"",Y14+Z14) -> 4888.320118 | AC14: =AA14 -> 4888.320118 | AD14: =Y14 -> 1485.085 | AE14: 3403.235118 | AH14: NORDESTE
B15: 4242.915118 | C15: 3 | E15: Refinaria Landulpho Alves (RLAM) | F15: Rodovia BA 523, KM 4 – Mataripe São Francisco do Conde - BA CEP:43900-000 | G15: Bahia | H15: SÃO FRANCISCO DO CONDE - BA | I15: =I14 -> Pirapora - MG | J15: - | K15: 2.666435118 | L15: 2666.435118 | M15: =ROUND(((L15/(1-$O$6-$O$7-$O$8))-L15),2) -> 736.8 | N15: 3403.235118 | O15: 1116 | Q15: =ROUND((26.939+0.253*O15),2) -> 309.29 | S15: 309.29 | T15: 67.89 | U15: 437 | V15: 814.18 | W15: 204 | X15: 25.5 | Y15: 839.68 | Z15: 3403.235118 | AA15: 4242.915118 | AC15: 4242.915118 | AD15: 839.68 | AE15: 3403.235118 | AH15: NORDESTE
A16: 2403 | B16: 4836.35036 | C16: 4 | E16: Refinaria Lubrificantes e Derivados do Nordeste (Lubnor) | F16: Av. Leite Barbosa, s/nº - Mucuripe Fortaleza - Ceará CEP:60180-420 | G16: Ceará | H16: FORTALEZA - CE | I16: Pirapora - MG | J16: 2.60434536 | K16: 2.666435118 | L16: =IF(AND(J16="-",K16=""),"",IF(AND(J16<>0,K16=""),J16*1000,IF(AND(J16="-",K16<>0),K16*1000,IF(AND(J16<>0,K16<>0),J16*1000,"")))) -> 2604.34536 | M16: =ROUND(((L16/(1-$O$6-$O$7-$O$8))-L16),2) -> 719.64 | N16: 3323.98536 | O16: 2130 | Q16: 565.83 | S16: 565.83 | T16: 124.2 | U16: 799.46 | V16: 1489.49 | W16: 183 | X16: 22.875 | Y16: 1512.365 | Z16: 3323.98536 | AA16: 4836.35036 | AC16: 4836.35036 | AD16: 1512.365 | AE16: 3323.98536 | AH16: NORDESTE
B17: 4228.312121 | C17: 5 | E17: Refinaria Capuava (Recap) | F17: Av. Alberto Soares Sampaio, 2122-A Capuava – Mauá - SP | G17: São Paulo | H17: MAUÁ - SP | I17: Pirapora - MG | J17: 2.749827121 | K17: 2.566491808 | L17: 2749.827121 | M17: =ROUND(((L17/(1-$O$6-$O$7-$O$8))-L17),2) -> 759.84 | N17: 3509.667121 | O17: 920 | Q17: 259.7 | S17: 259.7 | T17: 57 | U17: 366.92 | V17: 683.62 | W17: 280.2 | X17: 35.025 | Y17: 718.645 | Z17: 3509.667121 | AA17: 4228.312121 | AC17: 4228.312121 | AD17: 718.645 | AE17: 3509.667121 | AH17: SUDESTE
B18: 3907.846808 | C18: 6 | E18: Refinaria Duque de Caxias (Reduc) | F18: Rodovia Washington Luiz, km 113,7 Campos Elíseos – Duque de Caxias - RJ CEP:25213-005 | G18: Rio de Janeiro | H18: DUQUE DE CAXIAS - RJ | I18: Pirapora - MG | J18: - | K18: 2.566491808 | L18: 2566.491808 | M18: 709.18 | N18: 3275.671808 | O18: 746 | Q18: 215.68 | S18: 215.68 | T18: 47.34 | U18: 304.73 | V18: 567.75 | W18: 515.4 | X18: 64.425 | Y18: 632.175 | Z18: 3275.671808 | AA18: 3907.846808 | AC18: 3907.846808 | AD18: 632.175 | AE18: 3275.671808 | AH18: SUDESTE
B19: 5248.765224 | C19: 7 | E19: Refinaria Alberto Pasqualini (Refap) | F19: Avenida Getúlio Vargas, 11001 - Bairro Brigadeira Canoas - RS - Brasil CEP:92420-221 | G19: Rio Grande do Sul | H19: CANOAS - RS | I19: Pirapora - MG | J19: 2.881700224 | K19: 2.909805059 | L19: 2881.700224 | M19: 796.28 | N19: 3677.980224 | O19: 2056 | Q19: 547.11 | S19: 547.11 | T19: 120.09 | U19: 773.01 | V19: 1440.21 | W19: 1044.6 | X19: 130.575 | Y19: 1570.785 | Z19: 3677.980224 | AA19: 5248.765224 | AC19: 5248.765224 | AD19: 1570.785 | AE19: 3677.980224 | AH19: SUL
B20: 4812.536298 | C20: 8 | E20: Unidade de Industrialização do Xisto (SIX) | F20: Rodovia do Xisto, BR 476, km 153 São Mateus do Sul – PR CEP 83900-000 | G20: Paraná | H20: SÃO MATEUS DO SUL - PR | I20: Pirapora - MG | J20: 2.934126298 | K20: 2.909805059 | L20: 2934.126298 | M20: 810.77 | N20: 3744.896298 | O20: 1377 | Q20: 375.32 | S20: 375.32 | T20: 82.38 | U20: 530.29 | V20: 987.99 | W20: 637.2 | X20: 79.65 | Y20: 1067.64 | Z20: 3744.896298 | AA20: 4812.536298 | AC20: 4812.536298 | AD20: 1067.64 | AE20: 3744.896298 | AH20: SUL
B21: 3598.856808 | C21: 9 | E21: Refinaria Gabriel Passos (Regap) | F21: Av. Refinaria Gabriel Passos, 690 Distrito Industrial Paulo Camilo Sul Betim - MG CEP:32669-205 | G21: Minas Gerais | H21: BETIM - MG | I21: Pirapora - MG | J21: - | K21: 2.566491808 | L21: 2566.491808 | M21: 709.18 | N21: 3275.671808 | O21: 351 | Q21: 115.74 | S21: 115.74 | T21: 25.4 | U21: 163.52 | V21: 304.66 | W21: 148.2 | X21: 18.525 | Y21: 323.185 | Z21: 3275.671808 | AA21: =IF(OR(Y21="",Z21=""),"",Y21+Z21) -> 3598.856808 | AC21: 3598.856808 | AD21: 323.185 | AE21: 3275.671808 | AH21: SUDESTE
B22: 4793.931298 | C22: 10 | E22: Refinaria Presidente Getúlio Vargas (Repar) | F22: Rodovia do Xisto, BR 476, km 16 Araucária - PR CEP:83707-440 | G22: Paraná | H22: ARAUCÁRIA - PR | I22: Pirapora - MG | J22: 2.934126298 | K22: 2.909805059 | L22: 2934.126298 | M22: 810.77 | N22: 3744.896298 | O22: 1362 | Q22: 371.53 | S22: 371.53 | T22: 81.55 | U22: 524.93 | V22: 978.01 | W22: 568.2 | X22: 71.025 | Y22: 1049.035 | Z22: 3744.896298 | AA22: 4793.931298 | AC22: 4793.931298 | AD22: 1049.035 | AE22: 3744.896298 | AH22: SUL
B23: 4255.622121 | C23: 11 | E23: Refinaria Presidente Bernardes (RPBC) | F23: Av. 9 de abril, 777 - Jardim das Indústrias Cubatão - SP CEP:11505-000 | G23: São Paulo | H23: CUBATÃO - SP | I23: Pirapora - MG | J23: 2.749827121 | K23: 2.566491808 | L23: 2749.827121 | M23: 759.84 | N23: 3509.667121 | O23: 961 | Q23: 270.07 | S23: 270.07 | T23: 59.28 | U23: 381.58 | V23: 710.93 | W23: 280.2 | X23: 35.025 | Y23: 745.955 | Z23: 3509.667121 | AA23: 4255.622121 | AC23: 4255.622121 | AD23: 745.955 | AE23: 3509.667121 | AH23: SUDESTE
B24: 4246.637121 | C24: 12 | E24: Refinaria de Paulínia (Replan) | F24: Rodovia SP 332 - Km. 130 Bonfim - Paulínia – SP CEP:13140-000 | G24: São Paulo | H24: PAULÍNIA - SP | I24: Pirapora - MG | J24: 2.749827121 | K24: 2.566491808 | L24: 2749.827121 | M24: 759.84 | N24: 3509.667121 | O24: 860 | Q24: 244.52 | S24: 244.52 | T24: 53.67 | U24: 345.48 | V24: 643.67 | W24: 746.4 | X24: 93.3 | Y24: 736.97 | Z24: 3509.667121 | AA24: 4246.637121 | AC24: 4246.637121 | AD24: 736.97 | AE24: 3509.667121 | AH24: SUDESTE
B25: 4204.547121 | C25: 13 | E25: Refinaria Henrique Lage (Revap) | F25: Rodovia Presidente Dutra, KM 143, S/N Bairro Jardim Diamante - São José dos Campos – SP CEP:12223-900 | G25: São Paulo | H25: SÃO JOSÉ DOS CAMPOS - SP | I25: Pirapora - MG | J25: 2.749827121 | K25: 2.566491808 | L25: 2749.827121 | M25: 759.84 | N25: 3509.667121 | O25: 872 | Q25: 247.56 | S25: 247.56 | T25: 54.34 | U25: 349.78 | V25: 651.68 | W25: 345.6 | X25: 43.2 | Y25: 694.88 | Z25: 3509.667121 | AA25: 4204.547121 | AC25: 4204.547121 | AD25: 694.88 | AE25: 3509.667121 | AH25: SUDESTE
D34: Acre
D35: Alagoas
D36: Amapá
D37: Amazonas
D38: Bahia
D39: Ceará
D40: Distrito Federal
D41: Espírito Santo
D42: Goiás
D43: Maranhão
D44: Mato Grosso
D45: Mato Grosso do Sul
D46: Minas Gerais
D47: Pará
D48: Paraíba
D49: Paraná
D50: Pernambuco
D51: Piauí
D52: Rio de Janeiro
D53: Rio Grande do Norte
D54: Rio Grande do Sul
D55: Rondônia
D56: Roraima
D57: Santa Catarina
D58: São Paulo
D59: Sergipe
D60: Tocantins
D64: ASFALTOS DILUÍDOS CM-30
D65: ASFALTOS DILUÍDOS CM-70
D66: ASFALTOS DILUÍDOS CR-250
D67: ASFALTOS DILUÍDOS CR-70
D68: CAP MODIFICADO POR BORRACHA DE PNEU AB22
D69: CAP MODIFICADO POR BORRACHA DE PNEU AB8
D70: CAP MODIFICADO POR POLÍMERO 55-75-E
D71: CAP MODIFICADO POR POLÍMERO 60-85-E
D72: CAP MODIFICADO POR POLÍMERO 65-90-E
D73: CIMENTOS ASFÁLTICOS CAP-150-200
D74: CIMENTOS ASFÁLTICOS CAP-30-45
D75: CIMENTOS ASFÁLTICOS CAP-50-70
D76: CIMENTOS ASFÁLTICOS CAP-85-100
D77: EMULSÃO ASFÁLTICA CATIÔNICA DE RUPTURA CONTROLADA PARA SERVIÇO DE LAMA ASFÁLTICA
D78: EMULSÃO ASFÁLTICA DE RUPTURA LENTA CATIÔNICA PARA SERVIÇO DE LAMA ASFÁLTICA
D79: EMULSÃO ASFÁLTICA DE RUPTURA LENTA DE CARGA NEUTRA PARA SERVIÇO DE LAMA ASFÁLTICA
D80: EMULSÃO ASFÁLTICA PARA SERVIÇO DE IMPRIMAÇÃO
D81: EMULSÕES ASF. MOD. POR POLÍMEROS RC1C-E
D82: EMULSÕES ASF. MOD. POR POLÍMEROS RL1C-E
D83: EMULSÕES ASF. MOD. POR POLÍMEROS RM1C-E
D84: EMULSÕES ASF. MOD. POR POLÍMEROS RR1C-E
D85: EMULSÕES ASF. MOD. POR POLÍMEROS RR2C-E
D86: EMULSÕES ASFÁLTICAS RL-1C
D87: EMULSÕES ASFÁLTICAS RM-1C
D88: EMULSÕES ASFÁLTICAS RM-2C
D89: EMULSÕES ASFÁLTICAS RR-1C
D90: EMULSÕES ASFÁLTICAS RR-2C

Sheet RR-1C
C2: MEMÓRIA DE CÁLCULO
G6: TIPOLOGIA DO MATERIAL | I6: EMULSÕES ASFÁLTICAS RR-1C | M6: IMPOSTOS | N6: COFINS | O6: 0.0065 | P6: 0.0065
G7: ÍNDICE DE PAVIMENTAÇÃO DNIT | H7: 2014-07-01 | I7: ÍNDICE INICIAL | J7: 270.237 | N7: PIS | O7: 0.03 | P7: 0.03 | T7: LEGENDA | AC7: As empresas tributadas pelo Lucro Presumido pagam 0,65% de PIS e 3% de COFINS
H8: 2023-10-01 | I8: ÍNDICE FINAL | J8: =EAI!J8 -> 583.334 | N8: ICMS | O8: 0.18 | P8: 0.18 | Q8: =1-(O8/1) -> 0.82 | R8: =1-(P8/1) -> 0.82 | S8: =1-(Q8/1) -> 0.18 | T8: ENTRADA DE DADOS | V8: QUANT.ESTIMADA DE RR-1C (TON.): | Z8: =ORÇAMENTO!H38 -> 10 | AA8: TONELADAS | AC8: As empresas tributadas pelo Lucro Real pagam 1,65% de PIS e 7,60% de COFINS
G9: Data ANP | H9: =EAI!H9 -> 2024-12-01
C11: DATA-BASE | D11: PRODUTOS | E11: LOCALIDADES | J11: CUSTO ANP (R$/Kg) | L11: CUSTO ANP | M11: IMPOSTOS DO PRODUTO | N11: CUSTO DO PRODUTO COM IMPOSTOS | O11: DMT's | P11: DMT'S FLUVIAL | Q11: CUSTO DO TRANSPORTE RODOVIA PAVIMENTADA | R11: CUSTO DO TRANSPORTE FLUVIAL | S11: CUSTO DO TRANSPORTE TOTAL | T11: ICMS | U11: ATUALIZAÇÃO DO CUSTO DE TRANSPORTE | V11: CUSTO DO TRANSPORTE RODOVIA PAVIMENTADA COM IMPOSTOS E ATUALIZAÇÃO MONETÁRIA | W11: PEDÁGIO | Y11: TOTAL TRANSPORTE | Z11: AQUISIÇÃO DO PRODUTO | AA11: TOTAL GERAL ( TRANSP + AQUISIÇÃO) | AC11: 1 | AD11: 2 | AE11: 3
C12: =H8 -> 2023-10-01 | E12: REFINARIAS | F12: ENDEREÇO | G12: ESTADO | H12: CIDADE | I12: DESTINO | J12: ESTADO | K12: REGIÃO | L12: R$/t | M12: R$/t | N12: R$/t | O12: KM | P12: KM | Q12: R$/t | R12: R$/t | S12: R$/t | T12: R$/t | U12: R$/t | V12: R$/t | W12: CUSTO | X12: R$/t | Y12: R$/t | Z12: R$/t | AA12: R$/t | AC12: TOTAL GERAL ( TRANSP + AQUISIÇÃO) | AD12: TOTAL TRANSPORTE | AE12: AQUISIÇÃO DO PRODUTO
B13: =AA13 -> 4615.807086 | C13: 1 | D13: =I6 -> EMULSÕES ASFÁLTICAS RR-1C | E13: 'CENTRO OESTE ASFALTOS LTDA. | F13: SETOR DE INFLAMÁVEIS, S/N TRECHO 02 - LOTE 1.100 - GUARÁ - CEP:71225-000 | G13: Distrito Federal | H13: BRASÍLIA - DF | I13: =EAI!I13 -> Pirapora - MG | J13: - | K13: 3.257537086 | L13: =IF(AND(J13="-",K13="-"),"",IF(AND(J13<>0,K13="-"),J13*1000,IF(AND(J13="-",K13<>0),K13*1000,IF(AND(J13<>0,K13<>0),J13*1000,"")))) -> 3257.537086 | M13: =ROUND(((L13/(1-$O$6-$O$7-$O$8))-L13),2) -> 900.14 | N13: =L13+M13 -> 4157.677086 | O13: 536 | Q13: =ROUND((26.939+0.253*O13),2) -> 162.55 | S13: =Q13+R13 -> 162.55 | T13: =TRUNC(S13*($O$8/(1-$O$8)),2) -> 35.68 | U13: =TRUNC(IF($J$7="","",(($J$8-$J$7)/$J$7)*(S13+T13)),2) -> 229.66 | V13: =S13+T13+U13 -> 427.89 | W13: 151.2 | X13: =EVEN($Z$8*2/28)*W13/$Z$8 -> 30.24 | Y13: =IF(AND(Q13="",T13=""),"",V13+X13) -> 458.13 | Z13: =IF(OR(L13="",M13=""),"",L13+M13) -> 4157.677086 | AA13: =IF(OR(Y13="",Z13=""),"",Y13+Z13) -> 4615.807086 | AC13: =AA13 -> 4615.807086 | AD13: =Y13 -> 458.13 | AE13: =Z13 -> 4157.677086 | AH13: =IF(OR(G13=$D$52,G13=$D$53,G13=$D$55,G13=$D$61,G13=$D$45,G13=$D$41,G13=$D$37,G13=$D$50,G13=$D$40),"NORDESTE",IF(OR(G13=$D$36,G13=$D$38,G13=$D$39,G13=$D$49,G13=$D$57,G13=$D$58,G13=$D$62),"NORTE",IF(OR(G13=$D$42,G13=$D$44,G13=$D$46,G13=$D$47),"CENTRO-OESTE",IF(OR(G13=$D$60,G13=$D$54,G13=$D$48,G13=$D$43),"SUDESTE",IF(OR(G13=$D$59,G13=$D$51,G13=$D$56),"SUL",""))))) -> CENTRO-OESTE
B14: =AA14 -> 4588.381189 | C14: 2 | E14: STRATURA ASFALTOS S/A | F14: AVENIDA PRESIDENTE WILSON, 08 - JUNDIAÍ - CEP:75115-100 | G14: Goiás | H14: ANÁPOLIS - GO | I14: =I13 -> Pirapora - MG | J14: 3.178431189 | K14: 3.257537086 | L14: =IF(AND(J14="-",K14="-"),"",IF(AND(J14<>0,K14="-"),J14*1000,IF(AND(J14="-",K14<>0),K14*1000,IF(AND(J14<>0,K14<>0),J14*1000,"")))) -> 3178.431189 | M14: =ROUND(((L14/(1-$O$6-$O$7-$O$8))-L14),2) -> 878.28 | N14: =L14+M14 -> 4056.711189 | O14: 634 | Q14: =ROUND((26.939+0.253*O14),2) -> 187.34 | S14: =Q14+R14 -> 187.34 | T14: =TRUNC(S14*($O$8/(1-$O$8)),2) -> 41.12 | U14: =TRUNC(IF($J$7="","",(($J$8-$J$7)/$J$7)*(S14+T14)),2) -> 264.69 | V14: =S14+T14+U14 -> 493.15 | W14: 192.6 | X14: =EVEN($Z$8*2/28)*W14/$Z$8 -> 38.52 | Y14: 531.67 | Z14: 4056.711189 | AA14: =IF(OR(Y14="",Z14=""),"",Y14+Z14) -> 4588.381189 | AC14: =AA14 -> 4588.381189 | AD14: =Y14 -> 531.67 | AE14: 4056.711189 | AH14: CENTRO-OESTE
B15: 4611.401189 | C15: 3 | E15: DISTRIBUIDORA BRASILEIRA DE ASFALTO SA - DISBRAL | F15: VIA PRIMARIA 8, S/N QD-18, MODS. 24/47 - DAIAG - CEP:74980-970 | G15: Goiás | H15: APARECIDA DE GOIANIA - GO | I15: =I14 -> Pirapora - MG | J15: 3.178431189 | K15: 3.257537086 | L15: 3178.431189 | M15: 878.28 | N15: 4056.711189 | O15: 681 | Q15: 199.23 | S15: 199.23 | T15: 43.73 | U15: 281.49 | V15: 524.45 | W15: 151.2 | X15: 30.24 | Y15: 554.69 | Z15: 4056.711189 | AA15: 4611.401189 | AC15: 4611.401189 | AD15: 554.69 | AE15: 4056.711189 | AH15: CENTRO-OESTE
A16: 2403 | B16: 4641.381189 | C16: 4 | E16: INDÚSTRIA NACIONAL DE ASFALTOS LTDA. | F16: VIA PRIMEIRA E SEGUNDA 3, S/N.º LOTES 01 A 10 - DISTRITO AGROINDUSTRIAL - CEP:75370-000 | G16: Goiás | H16: GOIANIRA - GO | I16: Pirapora - MG | J16: 3.178431189 | K16: 3.257537086 | L16: 3178.431189 | M16: 878.28 | N16: 4056.711189 | O16: 726 | Q16: 210.62 | S16: 210.62 | T16: 46.23 | U16: 297.58 | V16: 554.43 | W16: 151.2 | X16: 30.24 | Y16: 584.67 | Z16: 4056.711189 | AA16: 4641.381189 | AC16: 4641.381189 | AD16: 584.67 | AE16: 4056.711189 | AH16: CENTRO-OESTE
B17: 3893.746392 | C17: 5 | E17: STRATURA ASFALTOS S/A | F17: RUA VICTOR RODRIGUES RESENDE, 333 - DISTRITO IND. DE UBERLÂNDIA - CEP:38405-440 | G17: Minas Gerais | H17: UBERLANDIA - MG | I17: Pirapora - MG | J17: 2.725016392 | K17: 2.773497503 | L17: 2725.016392 | M17: 752.99 | N17: 3478.006392 | O17: 472 | Q17: 146.36 | S17: 146.36 | T17: 32.12 | U17: 206.78 | V17: 385.26 | W17: 152.4 | X17: 30.48 | Y17: 415.74 | Z17: 3478.006392 | AA17: 3893.746392 | AC17: 3893.746392 | AD17: 415.74 | AE17: 3478.006392 | AH17: SUDESTE
B18: 5603.021862 | C18: 6 | E18: ARAPETRO DISTRIBUIDORA DE PETRÓLEO LTDA. | F18: RUA 04, S/N° LOTES 17 A 20. - DISTRITO INDUSTRIAL 1/8 - CEP:78600-000 | G18: Mato Grosso | H18: BARRA DO GARCAS - MT | I18: =I17 -> Pirapora - MG | J18: 3.755001862 | K18: 3.257537086 | L18: =IF(AND(J18="-",K18="-"),"",IF(AND(J18<>0,K18="-"),J18*1000,IF(AND(J18="-",K18<>0),K18*1000,IF(AND(J18<>0,K18<>0),J18*1000,"")))) -> 3755.001862 | M18: =ROUND(((L18/(1-$O$6-$O$7-$O$8))-L18),2) -> 1037.6 | N18: 4792.601862 | O18: 1065 | Q18: 296.38 | S18: 296.38 | T18: 65.05 | U18: 418.75 | V18: 780.18 | W18: 151.2 | X18: 30.24 | Y18: 810.42 | Z18: 4792.601862 | AA18: 5603.021862 | AH18: CENTRO-OESTE
B19: 3816.966392 | C19: 7 | E19: DISTRIBUIDORA BRASILEIRA DE ASFALTO SA - DISBRAL | F19: SÃO JUDAS TADEU, 288 - DISTRITO INDUSTRIAL - CEP:32450-000 | G19: Minas Gerais | H19: SARZEDO - MG | I19: Pirapora - MG | J19: 2.725016392 | K19: 2.773497503 | L19: 2725.016392 | M19: 752.99 | N19: 3478.006392 | O19: 358 | Q19: 117.51 | S19: 117.51 | T19: 25.79 | U19: 166.02 | V19: 309.32 | W19: 148.2 | X19: 29.64 | Y19: 338.96 | Z19: 3478.006392 | AA19: 3816.966392 | AH19: SUDESTE
B20: 5689.156513 | C20: 8 | E20: 'INDÚSTRIA NACIONAL DE ASFALTOS LTDA. | F20: INDÚSTRIA NACIONAL DE ASFALTOS LTDA - CEP:77053-080 | G20: Tocantins | H20: PALMAS - TO | I20: Pirapora - MG | J20: - | K20: 3.608456513 | L20: 3608.456513 | M20: 997.1 | N20: 4605.556513 | O20: 1349 | Q20: 368.24 | S20: 368.24 | T20: 80.83 | U20: 520.29 | V20: 969.36 | W20: 571.2 | X20: 114.24 | Y20: 1083.6 | Z20: 4605.556513 | AA20: 5689.156513 | AH20: NORTE
B21: 4539.072074 | C21: 9 | E21: 'NTA - NOVAS TÉCNICAS DE ASFALTOS S/A | F21: RUA SOFIA ATAURI FADIN, 150 SALA A - B. SANTA TEREZINHA - CEP:13140-000 | G21: São Paulo | H21: PAULINIA - SP | I21: Pirapora - MG | J21: 2.929862074 | K21: 2.773497503 | L21: 2929.862074 | M21: =ROUND(((L21/(1-$O$6-$O$7-$O$8))-L21),2) -> 809.59 | N21: 3739.452074 | O21: 870 | Q21: 247.05 | S21: 247.05 | T21: 54.23 | U21: 349.06 | V21: 650.34 | W21: 746.4 | X21: 149.28 | Y21: 799.62 | Z21: 3739.452074 | AA21: 4539.072074 | AC21: 4539.072074 | AD21: 799.62 | AE21: 3739.452074 | AH21: SUDESTE
B22: 4462.422074 | C22: 10 | E22: COMPANHIA BRASILEIRA DE ASFALTOS DA AMAZÔNIA - IMPORTAÇÃO E EXPORTAÇÃO | F22: Avenida Doutor Olindo Dártora 2451, Galpão 02, Morro Grande - CEP:07726-555 | G22: São Paulo | H22: CAIEIRAS - SP | I22: Pirapora - MG | J22: 2.929862074 | K22: 2.773497503 | L22: 2929.862074 | M22: =ROUND(((L22/(1-$O$6-$O$7-$O$8))-L22),2) -> 809.59 | N22: 3739.452074 | O22: 898 | Q22: 254.13 | S22: 254.13 | T22: 55.78 | U22: 359.06 | V22: 668.97 | W22: 270 | X22: 54 | Y22: 722.97 | Z22: 3739.452074 | AA22: 4462.422074 | AH22: SUDESTE
B23: 5080.257086 | C23: 11 | E23: BETUNEL INDÚSTRIA E COMÉRCIO LTDA. | F23: R 16 , 82, Vila Nova Campo Grande - CEP:79.103-834 | G23: Mato Grosso do Sul | H23: CAMPO GRANDE - MS | I23: Pirapora - MG | J23: - | K23: 3.257537086 | L23: 3257.537086 | M23: =ROUND(((L23/(1-$O$6-$O$7-$O$8))-L23),2) -> 900.14 | N23: 4157.677086 | O23: 1233 | Q23: 338.89 | S23: 338.89 | T23: 74.39 | U23: 478.82 | V23: 892.1 | W23: 152.4 | X23: 30.48 | Y23: 922.58 | Z23: 4157.677086 | AA23: 5080.257086 | AH23: CENTRO-OESTE
B24: 5974.521862 | C24: 12 | E24: BETUNEL INDÚSTRIA E COMÉRCIO LTDA. | F24: RUA N ESQUINA COM RUA X, S/N QD. IND. 7 L 01/08 - DIST. IND. - CEP:78015-285 | G24: Mato Grosso | H24: CUIABA - MT | I24: =I23 -> Pirapora - MG | J24: 3.755001862 | K24: 3.257537086 | L24: 3755.001862 | M24: 1037.6 | N24: 4792.601862 | O24: 1517 | Q24: 410.74 | S24: 410.74 | T24: 90.16 | U24: 580.34 | V24: 1081.24 | W24: 503.4 | X24: 100.68 | Y24: 1181.92 | Z24: 4792.601862 | AA24: 5974.521862 | AH24: CENTRO-OESTE
B25: 4448.242074 | C25: 13 | E25: VIAPOL LTDA. | F25: VITO ARDITO, 6401 KM 118,5 - JARDIM CAMPO GRANDE - CEP:12282-535 | G25: São Paulo | H25: CACAPAVA - SP | I25: =I24 -> Pirapora - MG | J25: 2.929862074 | K25: 2.773497503 | L25: 2929.862074 | M25: 809.59 | N25: 3739.452074 | O25: 854 | Q25: 243 | S25: 243 | T25: 53.34 | U25: 343.33 | V25: 639.67 | W25: 345.6 | X25: 69.12 | Y25: 708.79 | Z25: 3739.452074 | AA25: 4448.242074 | AC25: 4448.242074 | AD25: 708.79 | AE25: 3739.452074 | AH25: SUDESTE
B26: 4212.717503 | C26: 14 | E26: STRATURA ASFALTOS S/A | F26: RUA LUIS DE CAMÕES, 26 - CAMPOS ELÍSEOS - CEP:25225-030 | G26: Rio de Janeiro | H26: DUQUE DE CAXIAS - RJ | I26: Pirapora - MG | J26: - | K26: 2.773497503 | L26: 2773.497503 | M26: 766.38 | N26: 3539.877503 | O26: 749 | Q26: 216.44 | S26: 216.44 | T26: 47.51 | U26: 305.81 | V26: 569.76 | W26: 515.4 | X26: 103.08 | Y26: 672.84 | Z26: 3539.877503 | AA26: 4212.717503 | AC26: 4212.717503 | AD26: 672.84 | AE26: 3539.877503 | AH26: SUDESTE
B27: 4470.097761 | C27: 15 | E27: CASA DO ASFALTO DISTRIBUIDORA, INDÚSTRIA E COMÉRCIO DE ASFALTO LTDA. | F27: BR 376, PARQUE INDUSTRIAL, S/N LOTE 6/7/7-A-3-1 - GL.PATR.MARIALVA - CEP:86990-000 | G27: Paraná | H27: MARIALVA - PR | I27: =I26 -> Pirapora - MG | J27: 2.697487761 | K27: 2.707431613 | L27: 2697.487761 | M27: 745.38 | N27: 3442.867761 | O27: 1196 | Q27: 329.53 | S27: 329.53 | T27: 72.33 | U27: 465.59 | V27: 867.45 | W27: 798.9 | X27: 159.78 | Y27: 1027.23 | Z27: 3442.867761 | AA27: 4470.097761 | AC27: 4470.097761 | AD27: 1027.23 | AE27: 3442.867761 | AH27: SUL
D36: Acre
D37: Alagoas
D38: Amapá
D39: Amazonas
D40: Bahia
D41: Ceará
D42: Distrito Federal
D43: Espírito Santo
D44: Goiás
D45: Maranhão
D46: Mato Grosso
D47: Mato Grosso do Sul
D48: Minas Gerais
D49: Pará
D50: Paraíba
D51: Paraná
D52: Pernambuco
D53: Piauí
D54: Rio de Janeiro
D55: Rio Grande do Norte
D56: Rio Grande do Sul
D57: Rondônia
D58: Roraima
D59: Santa Catarina
D60: São Paulo
D61: Sergipe
D62: Tocantins
D66: ASFALTOS DILUÍDOS CM-30
D67: ASFALTOS DILUÍDOS CM-70
D68: ASFALTOS DILUÍDOS CR-250
D69: ASFALTOS DILUÍDOS CR-70
D70: CAP MODIFICADO POR BORRACHA DE PNEU AB22
D71: CAP MODIFICADO POR BORRACHA DE PNEU AB8
D72: CAP MODIFICADO POR POLÍMERO 55-75-E
D73: CAP MODIFICADO POR POLÍMERO 60-85-E
D74: CAP MODIFICADO POR POLÍMERO 65-90-E
D75: CIMENTOS ASFÁLTICOS CAP-150-200
D76: CIMENTOS ASFÁLTICOS CAP-30-45
D77: CIMENTOS ASFÁLTICOS CAP-50-70
D78: CIMENTOS ASFÁLTICOS CAP-85-100
D79: EMULSÃO ASFÁLTICA CATIÔNICA DE RUPTURA CONTROLADA PARA SERVIÇO DE LAMA ASFÁLTICA
D80: EMULSÃO ASFÁLTICA DE RUPTURA LENTA CATIÔNICA PARA SERVIÇO DE LAMA ASFÁLTICA
D81: EMULSÃO ASFÁLTICA DE RUPTURA LENTA DE CARGA NEUTRA PARA SERVIÇO DE LAMA ASFÁLTICA
D82: EMULSÃO ASFÁLTICA PARA SERVIÇO DE IMPRIMAÇÃO
D83: EMULSÕES ASF. MOD. POR POLÍMEROS RC1C-E
D84: EMULSÕES ASF. MOD. POR POLÍMEROS RL1C-E
D85: EMULSÕES ASF. MOD. POR POLÍMEROS RM1C-E
D86: EMULSÕES ASF. MOD. POR POLÍMEROS RR1C-E
D87: EMULSÕES ASF. MOD. POR POLÍMEROS RR2C-E
D88: EMULSÕES ASFÁLTICAS RL-1C
D89: EMULSÕES ASFÁLTICAS RM-1C
D90: EMULSÕES ASFÁLTICAS RM-2C
D91: EMULSÕES ASFÁLTICAS RR-1C
D92: EMULSÕES ASFÁLTICAS RR-2C

Sheet CAP
C2: MEMÓRIA DE CÁLCULO
G6: TIPOLOGIA DO MATERIAL | I6: CIMENTOS ASFÁLTICOS CAP-50-70 | M6: IMPOSTOS | N6: COFINS | O6: 0.0065 | P6: 0.0065
G7: ÍNDICE DE PAVIMENTAÇÃO DNIT | H7: 2014-07-01 | I7: ÍNDICE INICIAL | J7: 270.237 | N7: PIS | O7: 0.03 | P7: 0.03 | T7: LEGENDA | V7: QUANT.ESTIMADA DE MASSA ASFÁLTICA (TON.): | Z7: =ORÇAMENTO!H22 -> 1940 | AA7: TONELADAS | AC7: As empresas tributadas pelo Lucro Presumido pagam 0,65% de PIS e 3% de COFINS
H8: 2023-10-01 | I8: ÍNDICE FINAL | J8: =EAI!J8 -> 583.334 | N8: ICMS | O8: 0.18 | P8: 0.18 | Q8: =1-(O8/1) -> 0.82 | R8: =1-(P8/1) -> 0.82 | S8: =1-(Q8/1) -> 0.18 | T8: ENTRADA DE DADOS | V8: QUANT.ESTIMADA DE CAP 50/70 (TON.): | Z8: =ORÇAMENTO!H40 -> 110 | AA8: TONELADAS | AC8: As empresas tributadas pelo Lucro Real pagam 1,65% de PIS e 7,60% de COFINS
G9: Data ANP | H9: =EAI!H9 -> 2024-12-01
C11: DATA-BASE | D11: PRODUTOS | E11: LOCALIDADES | J11: CUSTO ANP (R$/Kg) | L11: CUSTO ANP | M11: IMPOSTOS DO PRODUTO | N11: CUSTO DO PRODUTO COM IMPOSTOS | O11: DMT's | P11: DMT's FLUVIAL | Q11: CUSTO DO TRANSPORTE RODOVIA PAVIMENTADA | R11: CUSTO DO TRANSPORTE FLUVIAL | S11: CUSTO DO TRANSPORTE TOTAL | T11: ICMS | U11: ATUALIZAÇÃO DO CUSTO DE TRANSPORTE | V11: CUSTO DO TRANSPORTE RODOVIA PAVIMENTADA COM IMPOSTOS E ATUALIZAÇÃO MONETÁRIA | W11: PEDÁGIO | Y11: TOTAL TRANSPORTE | Z11: AQUISIÇÃO DO PRODUTO | AA11: TOTAL GERAL ( TRANSP + AQUISIÇÃO) | AC11: 1 | AD11: 2 | AE11: 3
C12: =H8 -> 2023-10-01 | E12: REFINARIAS | F12: ENDEREÇO | G12: ESTADO | H12: CIDADE | I12: DESTINO | J12: ESTADO | K12: REGIÃO | L12: R$/t | M12: R$/t | N12: R$/t | O12: KM | P12: KM | Q12: R$/t | R12: R$/t | S12: R$/t | T12: R$/t | U12: R$/t | V12: R$/t | W12: CUSTO | X12: R$/t | Y12: R$/t | Z12: R$/t | AA12: R$/t | AC12: TOTAL GERAL ( TRANSP + AQUISIÇÃO) | AD12: TOTAL TRANSPORTE | AE12: AQUISIÇÃO DO PRODUTO
B13: =AA13 -> 6204.49613 | C13: 1 | D13: =I6 -> CIMENTOS ASFÁLTICOS CAP-50-70 | E13: Refinaria Abreu e Lima | F13: Rodovia PE 60, Km 10 - Ipojuca - PE CEP:55590-000 | G13: Pernambuco | H13: IPOJUCA - PE | I13: Montes Claros - MG | J13: - | K13: 3.944157039 | L13: =IF(AND(J13="-",K13="-"),"",IF(AND(J13<>0,K13="-"),J13*1000,IF(AND(J13="-",K13<>0),K13*1000,IF(AND(J13<>0,K13<>0),J13*1000,"")))) -> 3944.157039 | M13: =ROUND(((L13/(1-$O$6-$O$7-$O$8))-L13),2) -> 1089.87 | N13: =L13+M13 -> 5034.027039 | O13: 1631 | Q13: =ROUND((26.939+0.253*O13),2) -> 439.58 | S13: =Q13+R13 -> 439.58 | T13: =TRUNC(S13*($O$8/(1-$O$8)),2) -> 96.49 | U13: =TRUNC(IF($J$7="","",(($J$8-$J$7)/$J$7)*(S13+T13)),2) -> 621.09 | V13: =S13+T13+U13 -> 1157.16 | W13: 183 | X13: =EVEN($Z$8*2/28)*W13/$Z$8 -> 13.30909091 | Y13: =IF(AND(Q13="",T13=""),"",V13+X13) -> 1170.469091 | Z13: =IF(OR(L13="",M13=""),"",L13+M13) -> 5034.027039 | AA13: =IF(OR(Y13="",Z13=""),"",Y13+Z13) -> 6204.49613 | AC13: =AA13 -> 6204.49613 | AD13: =Y13 -> 1170.469091 | AE13: =Z13 -> 5034.027039 | AH13: =IF(OR(G13=$D$51,G13=$D$52,G13=$D$54,G13=$D$60,G13=$D$44,G13=$D$40,G13=$D$36,G13=$D$49,G13=$D$39),"NORDESTE",IF(OR(G13=$D$35,G13=$D$37,G13=$D$38,G13=$D$48,G13=$D$56,G13=$D$57,G13=$D$61),"NORTE",IF(OR(G13=$D$41,G13=$D$43,G13=$D$45,G13=$D$46),"CENTRO-OESTE",IF(OR(G13=$D$59,G13=$D$53,G13=$D$47,G13=$D$42),"SUDESTE",IF(OR(G13=$D$58,G13=$D$50,G13=$D$55),"SUL",""))))) -> NORDESTE
B14: =AA14 -> 6398.98613 | C14: 3 | E14: Refinaria Potiguar Clara Camarão | F14: Rodovia RN 221, KM 25 - Guamaré - RN CEP:59598-000 | G14: Rio Grande do Norte | H14: GUAMARÉ - RN | I14: =I13 -> Montes Claros - MG | J14: - | K14: 3.944157039 | L14: 3944.157039 | M14: =ROUND(((L14/(1-$O$6-$O$7-$O$8))-L14),2) -> 1089.87 | N14: =L14+M14 -> 5034.027039 | O14: 1923 | Q14: =ROUND((26.939+0.253*O14),2) -> 513.46 | S14: =Q14+R14 -> 513.46 | T14: =TRUNC(S14*($O$8/(1-$O$8)),2) -> 112.71 | U14: =TRUNC(IF($J$7="","",(($J$8-$J$7)/$J$7)*(S14+T14)),2) -> 725.48 | V14: =S14+T14+U14 -> 1351.65 | W14: 183 | X14: =EVEN($Z$8*2/28)*W14/$Z$8 -> 13.30909091 | Y14: 1364.959091 | Z14: 5034.027039 | AA14: =IF(OR(Y14="",Z14=""),"",Y14+Z14) -> 6398.98613 | AC14: =AA14 -> 6398.98613 | AD14: =Y14 -> 1364.959091 | AE14: 5034.027039 | AH14: NORDESTE
B15: 5857.785954 | C15: 4 | E15: Refinaria Landulpho Alves (RLAM) | F15: Rodovia BA 523, KM 4 – Mataripe São Francisco do Conde - BA CEP:43900-000 | G15: Bahia | H15: SÃO FRANCISCO DO CONDE - BA | I15: =I14 -> Montes Claros - MG | J15: 4.026159591 | K15: 3.944157039 | L15: 4026.159591 | M15: =ROUND(((L15/(1-$O$6-$O$7-$O$8))-L15),2) -> 1112.53 | N15: 5138.689591 | O15: 951 | Q15: =ROUND((26.939+0.253*O15),2) -> 267.54 | S15: 267.54 | T15: 58.72 | U15: 378 | V15: 704.26 | W15: 204 | X15: 14.83636364 | Y15: 719.0963636 | Z15: 5138.689591 | AA15: 5857.785954 | AC15: 5857.785954 | AD15: 719.0963636 | AE15: 5138.689591 | AH15: NORDESTE
A16: 2403 | B16: 6345.836745 | C16: 5 | E16: Refinaria Lubrificantes e Derivados do Nordeste (Lubnor) | F16: Av. Leite Barbosa, s/nº - Mucuripe Fortaleza - Ceará CEP:60180-420 | G16: Ceará | H16: FORTALEZA - CE | I16: Montes Claros - MG | J16: 3.880617654 | K16: 3.944157039 | L16: 3880.617654 | M16: =ROUND(((L16/(1-$O$6-$O$7-$O$8))-L16),2) -> 1072.31 | N16: 4952.927654 | O16: 1965 | Q16: 524.08 | S16: 524.08 | T16: 115.04 | U16: 740.48 | V16: 1379.6 | W16: 183 | X16: 13.30909091 | Y16: 1392.909091 | Z16: 4952.927654 | AA16: 6345.836745 | AC16: 6345.836745 | AD16: 1392.909091 | AE16: 4952.927654 | AH16: NORDESTE
B17: 5421.380986 | C17: 6 | E17: Refinaria Capuava (Recap) | F17: Av. Alberto Soares Sampaio, 2122-A Capuava – Mauá - SP | G17: São Paulo | H17: MAUÁ - SP | I17: Montes Claros - MG | J17: 3.643415531 | K17: 3.648999769 | L17: 3643.415531 | M17: =ROUND(((L17/(1-$O$6-$O$7-$O$8))-L17),2) -> 1006.76 | N17: 4650.175531 | O17: 1002 | Q17: 280.45 | S17: 280.45 | T17: 61.56 | U17: 396.25 | V17: 738.26 | W17: 453 | X17: 32.94545455 | Y17: 771.2054545 | Z17: 4650.175531 | AA17: 5421.380986 | AC17: 5421.380986 | AD17: 771.2054545 | AE17: 4650.175531 | AH17: SUDESTE
B18: 5149.277472 | C18: 7 | E18: Refinaria Duque de Caxias (Reduc) | F18: Rodovia Washington Luiz, km 113,7 Campos Elíseos – Duque de Caxias - RJ CEP:25213-005 | G18: Rio de Janeiro | H18: DUQUE DE CAXIAS - RJ | I18: Montes Claros - MG | J18: 3.508146563 | K18: 3.648999769 | L18: 3508.146563 | M18: 969.39 | N18: 4477.536563 | O18: 827 | Q18: 236.17 | S18: 236.17 | T18: 51.84 | U18: 333.68 | V18: 621.69 | W18: 688.2 | X18: 50.05090909 | Y18: 671.7409091 | Z18: 4477.536563 | AA18: 5149.277472 | AC18: 5149.277472 | AD18: 671.7409091 | AE18: 4477.536563 | AH18: SUDESTE
B19: 6400.35347 | C19: 8 | E19: Refinaria Alberto Pasqualini (Refap) | F19: Avenida Getúlio Vargas, 11001 - Bairro Brigadeira Canoas - RS - Brasil CEP:92420-221 | G19: Rio Grande do Sul | H19: CANOAS - RS | I19: Montes Claros - MG | J19: 3.776618925 | K19: 3.788605618 | L19: 3776.618925 | M19: 1043.57 | N19: 4820.188925 | O19: 2134 | Q19: 566.84 | S19: 566.84 | T19: 124.42 | U19: 800.89 | V19: 1492.15 | W19: 1210.2 | X19: 88.01454545 | Y19: 1580.164545 | Z19: 4820.188925 | AA19: 6400.35347 | AC19: 6400.35347 | AD19: 1580.164545 | AE19: 4820.188925 | AH19: SUL
B20: 6003.793817 | C20: 9 | E20: Unidade de Industrialização do Xisto (SIX) | F20: Rodovia do Xisto, BR 476, km 153 São Mateus do Sul – PR CEP 83900-000 | G20: Paraná | H20: SÃO MATEUS DO SUL - PR | I20: Montes Claros - MG | J20: 3.799588362 | K20: 3.788605618 | L20: 3799.588362 | M20: 1049.92 | N20: 4849.508362 | O20: 1539 | Q20: 416.31 | S20: 416.31 | T20: 91.38 | U20: 588.21 | V20: 1095.9 | W20: 802.8 | X20: 58.38545455 | Y20: 1154.285455 | Z20: 4849.508362 | AA20: 6003.793817 | AC20: 6003.793817 | AD20: 1154.285455 | AE20: 4849.508362 | AH20: SUL
B21: 5099.885828 | C21: 10 | E21: Refinaria Gabriel Passos (Regap) | F21: Av. Refinaria Gabriel Passos, 690 Distrito Industrial Paulo Camilo Sul Betim - MG CEP:32669-205 | G21: Minas Gerais | H21: BETIM - MG | I21: Montes Claros - MG | J21: 3.697444009 | K21: 3.648999769 | L21: 3697.444009 | M21: 1021.69 | N21: 4719.134009 | O21: 431 | Q21: 135.98 | S21: 135.98 | T21: 29.84 | U21: 192.11 | V21: 357.93 | W21: 313.8 | X21: 22.82181818 | Y21: 380.7518182 | Z21: 4719.134009 | AA21: =IF(OR(Y21="",Z21=""),"",Y21+Z21) -> 5099.885828 | AC21: 5099.885828 | AD21: 380.7518182 | AE21: 4719.134009 | AH21: SUDESTE
B22: 5932.825635 | C22: 11 | E22: Refinaria Presidente Getúlio Vargas (Repar) | F22: Rodovia do Xisto, BR 476, km 16 Araucária - PR CEP:83707-440 | G22: Paraná | H22: ARAUCÁRIA - PR | I22: Montes Claros - MG | J22: 3.799588362 | K22: 3.788605618 | L22: 3799.588362 | M22: 1049.92 | N22: 4849.508362 | O22: 1440 | Q22: 391.26 | S22: 391.26 | T22: 85.88 | U22: 552.81 | V22: 1029.95 | W22: 733.8 | X22: 53.36727273 | Y22: 1083.317273 | Z22: 4849.508362 | AA22: 5932.825635 | AC22: 5932.825635 | AD22: 1083.317273 | AE22: 4849.508362 | AH22: SUL
B23: 5463.510077 | C23: 12 | E23: Refinaria Presidente Bernardes (RPBC) | F23: Av. 9 de abril, 777 - Jardim das Indústrias Cubatão - SP CEP:11505-000 | G23: São Paulo | H23: CUBATÃO - SP | I23: Montes Claros - MG | J23: 3.643415531 | K23: 3.648999769 | L23: 3643.415531 | M23: 1006.76 | N23: 4650.175531 | O23: 1041 | Q23: 290.31 | S23: 290.31 | T23: 63.72 | U23: 410.17 | V23: 764.2 | W23: 675.6 | X23: 49.13454545 | Y23: 813.3345455 | Z23: 4650.175531 | AA23: 5463.510077 | AC23: 5463.510077 | AD23: 813.3345455 | AE23: 4650.175531 | AH23: SUDESTE
B24: 5435.814622 | C24: 13 | E24: Refinaria de Paulínia (Replan) | F24: Rodovia SP 332 - Km. 130 Bonfim - Paulínia – SP CEP:13140-000 | G24: São Paulo | H24: PAULÍNIA - SP | I24: Montes Claros - MG | J24: 3.643415531 | K24: 3.648999769 | L24: 3643.415531 | M24: 1006.76 | N24: 4650.175531 | O24: 1021 | Q24: 285.25 | S24: 285.25 | T24: 62.61 | U24: 403.03 | V24: 750.89 | W24: 477.8 | X24: 34.74909091 | Y24: 785.6390909 | Z24: 4650.175531 | AA24: 5435.814622 | AC24: 5435.814622 | AD24: 785.6390909 | AE24: 4650.175531 | AH24: SUDESTE
B25: 5392.973713 | C25: 14 | E25: Refinaria Henrique Lage (Revap) | F25: Rodovia Presidente Dutra, KM 143, S/N Bairro Jardim Diamante - São José dos Campos – SP CEP:12223-900 | G25: São Paulo | H25: SÃO JOSÉ DOS CAMPOS - SP | I25: Montes Claros - MG | J25: 3.643415531 | K25: 3.648999769 | L25: 3643.415531 | M25: 1006.76 | N25: 4650.175531 | O25: 953 | Q25: 268.05 | S25: 268.05 | T25: 58.84 | U25: 378.73 | V25: 705.62 | W25: 511.2 | X25: 37.17818182 | Y25: 742.7981818 | Z25: 4650.175531 | AA25: 5392.973713 | AC25: 5392.973713 | AD25: 742.7981818 | AE25: 4650.175531 | AH25: SUDESTE
D35: Acre
D36: Alagoas
D37: Amapá
D38: Amazonas
D39: Bahia
D40: Ceará
D41: Distrito Federal
D42: Espírito Santo
D43: Goiás
D44: Maranhão
D45: Mato Grosso
D46: Mato Grosso do Sul
D47: Minas Gerais
D48: Pará
D49: Paraíba
D50: Paraná
D51: Pernambuco
D52: Piauí
D53: Rio de Janeiro
D54: Rio Grande do Norte
D55: Rio Grande do Sul
D56: Rondônia
D57: Roraima
D58: Santa Catarina
D59: São Paulo
D60: Sergipe
D61: Tocantins
D65: ASFALTOS DILUÍDOS CM-30
D66: ASFALTOS DILUÍDOS CM-70
D67: ASFALTOS DILUÍDOS CR-250
D68: ASFALTOS DILUÍDOS CR-70
D69: CAP MODIFICADO POR BORRACHA DE PNEU AB22
D70: CAP MODIFICADO POR BORRACHA DE PNEU AB8
D71: CAP MODIFICADO POR POLÍMERO 55-75-E
D72: CAP MODIFICADO POR POLÍMERO 60-85-E
D73: CAP MODIFICADO POR POLÍMERO 65-90-E
D74: CIMENTOS ASFÁLTICOS CAP-150-200
D75: CIMENTOS ASFÁLTICOS CAP-30-45
D76: CIMENTOS ASFÁLTICOS CAP-50-70
D77: CIMENTOS ASFÁLTICOS CAP-85-100
D78: EMULSÃO ASFÁLTICA CATIÔNICA DE RUPTURA CONTROLADA PARA SERVIÇO DE LAMA ASFÁLTICA
D79: EMULSÃO ASFÁLTICA DE RUPTURA LENTA CATIÔNICA PARA SERVIÇO DE LAMA ASFÁLTICA
D80: EMULSÃO ASFÁLTICA DE RUPTURA LENTA DE CARGA NEUTRA PARA SERVIÇO DE LAMA ASFÁLTICA
D81: EMULSÃO ASFÁLTICA PARA SERVIÇO DE IMPRIMAÇÃO
D82: EMULSÕES ASF. MOD. POR POLÍMEROS RC1C-E
D83: EMULSÕES ASF. MOD. POR POLÍMEROS RL1C-E
D84: EMULSÕES ASF. MOD. POR POLÍMEROS RM1C-E
D85: EMULSÕES ASF. MOD. POR POLÍMEROS RR1C-E
D86: EMULSÕES ASF. MOD. POR POLÍMEROS RR2C-E
D87: EMULSÕES ASFÁLTICAS RL-1C
D88: EMULSÕES ASFÁLTICAS RM-1C
D89: EMULSÕES ASFÁLTICAS RM-2C
D90: EMULSÕES ASFÁLTICAS RR-1C
D91: EMULSÕES ASFÁLTICAS RR-2C

Sheet MAT.ASF
B9: PLANILHA RESUMO - MATERIAIS ASFÁLTICOS
B12: DATA-BASE | C12: PRODUTOS | D12: LOCALIDADES | H12: CUSTO ANP (R$/Kg) | J12: CUSTO ANP | K12: IMPOSTOS DO PRODUTO | L12: CUSTO DO PRODUTO COM IMPOSTOS | M12: DMT's | N12: DMT's | O12: CUSTO DO TRANSPORTE TOTAL | P12: ICMS | Q12: ATUALIZAÇÃO DO CUSTO DE TRANSPORTE | R12: CUSTO DO TRANSPORTE RODOVIA PAVIMENTADA COM IMPOSTOS E ATUALIZAÇÃO MONETÁRIA | S12: PEDÁGIO | U12: TOTAL TRANSPORTE | V12: TOTAL PRODUTO | W12: TOTAL GERAL
B13: =CAP!H9 -> 2024-12-01 | D13: REFINARIAS | E13: ENDEREÇO | F13: ORIGEM - REFINARIAS / DISTRIBUIDORAS | G13: DESTINO | H13: ESTADO | I13: REGIÃO | J13: R$/t | K13: R$/t | L13: R$/t | M13: KM | N13: KM | O13: R$/t | P13: R$/t | Q13: R$/t | R13: R$/t | S13: CUSTO POR EIXO | T13: R$/t | U13: R$/t | V13: R$/t | W13: R$/t
B14: 1 | C14: CAP 50/70 | D14: Refinaria Abreu e Lima | E14: Rodovia PE 60, Km 10 - Ipojuca - PE CEP:55590-000 | F14: =VLOOKUP($W14,CAP!$B:$AA,7,FALSE) -> BETIM - MG | G14: =VLOOKUP($W14,CAP!$B:$AA,8,FALSE) -> Montes Claros - MG | H14: =VLOOKUP($W14,CAP!$B:$AA,9,FALSE) -> 3.697444009 | I14: =VLOOKUP($W14,CAP!$B:$AA,10,FALSE) -> 3.648999769 | J14: =VLOOKUP($W14,CAP!$B:$AA,11,FALSE) -> 3697.444009 | K14: =VLOOKUP($W14,CAP!$B:$AA,12,FALSE) -> 1021.69 | L14: =VLOOKUP($W14,CAP!$B:$AA,13,FALSE) -> 4719.134009 | M14: =VLOOKUP($W14,CAP!$B$13:$AA$25,14,FALSE) -> 431 | N14: =VLOOKUP($W14,'[2]Transporte Cap 50-70'!$B:$AA,15,FALSE) ->  | O14: =VLOOKUP($W14,CAP!$B:$AA,18,FALSE) -> 135.98 | P14: =VLOOKUP($W14,CAP!$B:$AA,19,FALSE) -> 29.84 | Q14: =VLOOKUP($W14,CAP!$B:$AA,20,FALSE) -> 192.11 | R14: =VLOOKUP($W14,CAP!$B:$AA,21,FALSE) -> 357.93 | S14: =VLOOKUP($W14,CAP!$B:$AA,22,FALSE) -> 313.8 | T14: =VLOOKUP($W14,CAP!$B:$AA,23,FALSE) -> 22.82181818 | U14: =VLOOKUP($W14,CAP!$B:$AA,24,FALSE) -> 380.7518182 | V14: =VLOOKUP($W14,CAP!$B:$AA,25,FALSE) -> 4719.134009 | W14: =SMALL(CAP!$AA$13:$AA$25,1) -> 5099.885828
B15: 2 | D15: Refinaria Potiguar Clara Camarão | E15: Rodovia RN 221, KM 25 - Guamaré - RN CEP:59598-000 | F15: =VLOOKUP($W15,CAP!$B:$AA,7,FALSE) -> DUQUE DE CAXIAS - RJ | G15: =VLOOKUP($W15,CAP!$B:$AA,8,FALSE) -> Montes Claros - MG | H15: =VLOOKUP($W15,CAP!$B:$AA,9,FALSE) -> 3.508146563 | I15: =VLOOKUP($W15,CAP!$B:$AA,10,FALSE) -> 3.648999769 | J15: =VLOOKUP($W15,CAP!$B:$AA,11,FALSE) -> 3508.146563 | K15: =VLOOKUP($W15,CAP!$B:$AA,12,FALSE) -> 969.39 | L15: =VLOOKUP($W15,CAP!$B:$AA,13,FALSE) -> 4477.536563 | M15: =VLOOKUP($W15,CAP!$B$13:$AA$25,14,FALSE) -> 827 | N15: =VLOOKUP($W15,'[2]Transporte Cap 50-70'!$B:$AA,15,FALSE) ->  | O15: =VLOOKUP($W15,CAP!$B:$AA,18,FALSE) -> 236.17 | P15: =VLOOKUP($W15,CAP!$B:$AA,19,FALSE) -> 51.84 | Q15: =VLOOKUP($W15,CAP!$B:$AA,20,FALSE) -> 333.68 | R15: =VLOOKUP($W15,CAP!$B:$AA,21,FALSE) -> 621.69 | S15: =VLOOKUP($W15,CAP!$B:$AA,22,FALSE) -> 688.2 | T15: =VLOOKUP($W15,CAP!$B:$AA,23,FALSE) -> 50.05090909 | U15: =VLOOKUP($W15,CAP!$B:$AA,24,FALSE) -> 671.7409091 | V15: =VLOOKUP($W15,CAP!$B:$AA,25,FALSE) -> 4477.536563 | W15: =SMALL(CAP!$AA$13:$AA$25,2) -> 5149.277472
B16: 3 | D16: Complexo Petroquímico do Rio de Janeiro (Comperj) | E16: Rodovia Estadual RJ-116 - Km 5,2 - Acesso A-1, s/n, Complemento Sambaetiba - Zona Urbana do 4º Distrito de Itaboraí - RJ CEP:24841-203 | F16: =VLOOKUP($W16,CAP!$B:$AA,7,FALSE) -> SÃO JOSÉ DOS CAMPOS - SP | G16: =VLOOKUP($W16,CAP!$B:$AA,8,FALSE) -> Montes Claros - MG | H16: =VLOOKUP($W16,CAP!$B:$AA,9,FALSE) -> 3.643415531 | I16: =VLOOKUP($W16,CAP!$B:$AA,10,FALSE) -> 3.648999769 | J16: =VLOOKUP($W16,CAP!$B:$AA,11,FALSE) -> 3643.415531 | K16: =VLOOKUP($W16,CAP!$B:$AA,12,FALSE) -> 1006.76 | L16: =VLOOKUP($W16,CAP!$B:$AA,13,FALSE) -> 4650.175531 | M16: =VLOOKUP($W16,CAP!$B$13:$AA$25,14,FALSE) -> 953 | N16: =VLOOKUP($W16,'[2]Transporte Cap 50-70'!$B:$AA,15,FALSE) ->  | O16: =VLOOKUP($W16,CAP!$B:$AA,18,FALSE) -> 268.05 | P16: =VLOOKUP($W16,CAP!$B:$AA,19,FALSE) -> 58.84 | Q16: =VLOOKUP($W16,CAP!$B:$AA,20,FALSE) -> 378.73 | R16: =VLOOKUP($W16,CAP!$B:$AA,21,FALSE) -> 705.62 | S16: =VLOOKUP($W16,CAP!$B:$AA,22,FALSE) -> 511.2 | T16: =VLOOKUP($W16,CAP!$B:$AA,23,FALSE) -> 37.17818182 | U16: =VLOOKUP($W16,CAP!$B:$AA,24,FALSE) -> 742.7981818 | V16: =VLOOKUP($W16,CAP!$B:$AA,25,FALSE) -> 4650.175531 | W16: =SMALL(CAP!$AA$13:$AA$25,3) -> 5392.973713
B17: 4 | F17: =VLOOKUP($W17,CAP!$B:$AA,7,FALSE) -> MAUÁ - SP | G17: =VLOOKUP($W17,CAP!$B:$AA,8,FALSE) -> Montes Claros - MG | H17: =VLOOKUP($W17,CAP!$B:$AA,9,FALSE) -> 3.643415531 | I17: =VLOOKUP($W17,CAP!$B:$AA,10,FALSE) -> 3.648999769 | J17: =VLOOKUP($W17,CAP!$B:$AA,11,FALSE) -> 3643.415531 | K17: =VLOOKUP($W17,CAP!$B:$AA,12,FALSE) -> 1006.76 | L17: =VLOOKUP($W17,CAP!$B:$AA,13,FALSE) -> 4650.175531 | M17: =VLOOKUP($W17,CAP!$B$13:$AA$25,14,FALSE) -> 1002 | N17: =VLOOKUP($W17,'[2]Transporte Cap 50-70'!$B:$AA,15,FALSE) ->  | O17: =VLOOKUP($W17,CAP!$B:$AA,18,FALSE) -> 280.45 | P17: =VLOOKUP($W17,CAP!$B:$AA,19,FALSE) -> 61.56 | Q17: =VLOOKUP($W17,CAP!$B:$AA,20,FALSE) -> 396.25 | R17: =VLOOKUP($W17,CAP!$B:$AA,21,FALSE) -> 738.26 | S17: =VLOOKUP($W17,CAP!$B:$AA,22,FALSE) -> 453 | T17: =VLOOKUP($W17,CAP!$B:$AA,23,FALSE) -> 32.94545455 | U17: =VLOOKUP($W17,CAP!$B:$AA,24,FALSE) -> 771.2054545 | V17: =VLOOKUP($W17,CAP!$B:$AA,25,FALSE) -> 4650.175531 | W17: =SMALL(CAP!$AA$13:$AA$25,4) -> 5421.380986
B18: 5 | F18: =VLOOKUP($W18,CAP!$B:$AA,7,FALSE) -> PAULÍNIA - SP | G18: =VLOOKUP($W18,CAP!$B:$AA,8,FALSE) -> Montes Claros - MG | H18: =VLOOKUP($W18,CAP!$B:$AA,9,FALSE) -> 3.643415531 | I18: =VLOOKUP($W18,CAP!$B:$AA,10,FALSE) -> 3.648999769 | J18: =VLOOKUP($W18,CAP!$B:$AA,11,FALSE) -> 3643.415531 | K18: =VLOOKUP($W18,CAP!$B:$AA,12,FALSE) -> 1006.76 | L18: =VLOOKUP($W18,CAP!$B:$AA,13,FALSE) -> 4650.175531 | M18: =VLOOKUP($W18,CAP!$B$13:$AA$25,14,FALSE) -> 1021 | N18: =VLOOKUP($W18,'[2]Transporte Cap 50-70'!$B:$AA,15,FALSE) ->  | O18: =VLOOKUP($W18,CAP!$B:$AA,18,FALSE) -> 285.25 | P18: =VLOOKUP($W18,CAP!$B:$AA,19,FALSE) -> 62.61 | Q18: =VLOOKUP($W18,CAP!$B:$AA,20,FALSE) -> 403.03 | R18: =VLOOKUP($W18,CAP!$B:$AA,21,FALSE) -> 750.89 | S18: =VLOOKUP($W18,CAP!$B:$AA,22,FALSE) -> 477.8 | T18: =VLOOKUP($W18,CAP!$B:$AA,23,FALSE) -> 34.74909091 | U18: =VLOOKUP($W18,CAP!$B:$AA,24,FALSE) -> 785.6390909 | V18: =VLOOKUP($W18,CAP!$B:$AA,25,FALSE) -> 4650.175531 | W18: =SMALL(CAP!$AA$13:$AA$25,5) -> 5435.814622
B19: 6 | F19: =VLOOKUP($W19,CAP!$B:$AA,7,FALSE) -> CUBATÃO - SP | G19: =VLOOKUP($W19,CAP!$B:$AA,8,FALSE) -> Montes Claros - MG | H19: =VLOOKUP($W19,CAP!$B:$AA,9,FALSE) -> 3.643415531 | I19: =VLOOKUP($W19,CAP!$B:$AA,10,FALSE) -> 3.648999769 | J19: =VLOOKUP($W19,CAP!$B:$AA,11,FALSE) -> 3643.415531 | K19: =VLOOKUP($W19,CAP!$B:$AA,12,FALSE) -> 1006.76 | L19: =VLOOKUP($W19,CAP!$B:$AA,13,FALSE) -> 4650.175531 | M19: =VLOOKUP($W19,CAP!$B$13:$AA$25,14,FALSE) -> 1041 | N19: =VLOOKUP($W19,'[2]Transporte Cap 50-70'!$B:$AA,15,FALSE) ->  | O19: =VLOOKUP($W19,CAP!$B:$AA,18,FALSE) -> 290.31 | P19: =VLOOKUP($W19,CAP!$B:$AA,19,FALSE) -> 63.72 | Q19: =VLOOKUP($W19,CAP!$B:$AA,20,FALSE) -> 410.17 | R19: =VLOOKUP($W19,CAP!$B:$AA,21,FALSE) -> 764.2 | S19: =VLOOKUP($W19,CAP!$B:$AA,22,FALSE) -> 675.6 | T19: =VLOOKUP($W19,CAP!$B:$AA,23,FALSE) -> 49.13454545 | U19: =VLOOKUP($W19,CAP!$B:$AA,24,FALSE) -> 813.3345455 | V19: =VLOOKUP($W19,CAP!$B:$AA,25,FALSE) -> 4650.175531 | W19: =SMALL(CAP!$AA$13:$AA$25,6) -> 5463.510077
B21: 1 | C21: EMULSÃO ASFÁLTICA PARA IMPRIMAÇÃO (EAI) | D21: Refinaria Abreu e Lima | E21: Rodovia PE 60, Km 10 - Ipojuca - PE CEP:55590-000 | F21: =VLOOKUP($W21,EAI!$B$13:$AA$24,7,FALSE) -> BETIM - MG | G21: =VLOOKUP($W21,EAI!$B$13:$AA$24,8,FALSE) -> Pirapora - MG | H21: =VLOOKUP($W21,EAI!$B$13:$AA$24,9,FALSE) -> - | I21: =VLOOKUP($W21,EAI!$B$13:$AA$24,10,FALSE) -> 2.566491808 | J21: =VLOOKUP($W21,EAI!$B$13:$AA$24,11,FALSE) -> 2566.491808 | K21: =VLOOKUP($W21,EAI!$B$13:$AA$24,12,FALSE) -> 709.18 | L21: =VLOOKUP($W21,EAI!$B$13:$AA$24,13,FALSE) -> 3275.671808 | M21: =VLOOKUP($W21,EAI!$B$13:$AA$24,14,FALSE) -> 351 | N21: =VLOOKUP($W21,'[2]Transporte CM-30'!$B$13:$AA$25,15,FALSE) ->  | O21: =VLOOKUP($W21,EAI!$B$13:$AA$24,18,FALSE) -> 115.74 | P21: =VLOOKUP($W21,EAI!$B$13:$AA$24,19,FALSE) -> 25.4 | Q21: =VLOOKUP($W21,EAI!$B$13:$AA$24,20,FALSE) -> 163.52 | R21: =VLOOKUP($W21,EAI!$B$13:$AA$24,21,FALSE) -> 304.66 | S21: =VLOOKUP($W21,EAI!$B$13:$AA$24,22,FALSE) -> 148.2 | T21: =VLOOKUP($W21,EAI!$B$13:$AA$24,23,FALSE) -> 18.525 | U21: =VLOOKUP($W21,EAI!$B$13:$AA$24,24,FALSE) -> 323.185 | V21: =VLOOKUP($W21,EAI!$B:$AA,25,FALSE) -> 3275.671808 | W21: =SMALL(EAI!$AA$13:$AA$24,1) -> 3598.856808
B22: 2 | D22: Refinaria Potiguar Clara Camarão | E22: Rodovia RN 221, KM 25 - Guamaré - RN CEP:59598-000 | F22: =VLOOKUP($W22,EAI!$B$13:$AA$24,7,FALSE) -> DUQUE DE CAXIAS - RJ | G22: =VLOOKUP($W22,EAI!$B$13:$AA$24,8,FALSE) -> Pirapora - MG | H22: =VLOOKUP($W22,EAI!$B$13:$AA$24,9,FALSE) -> - | I22: =VLOOKUP($W22,EAI!$B$13:$AA$24,10,FALSE) -> 2.566491808 | J22: =VLOOKUP($W22,EAI!$B$13:$AA$24,11,FALSE) -> 2566.491808 | K22: =VLOOKUP($W22,EAI!$B$13:$AA$24,12,FALSE) -> 709.18 | L22: =VLOOKUP($W22,EAI!$B$13:$AA$24,13,FALSE) -> 3275.671808 | M22: =VLOOKUP($W22,EAI!$B$13:$AA$24,14,FALSE) -> 746 | N22: =VLOOKUP($W22,'[2]Transporte CM-30'!$B$13:$AA$25,15,FALSE) ->  | O22: =VLOOKUP($W22,EAI!$B$13:$AA$24,18,FALSE) -> 215.68 | P22: =VLOOKUP($W22,EAI!$B$13:$AA$24,19,FALSE) -> 47.34 | Q22: =VLOOKUP($W22,EAI!$B$13:$AA$24,20,FALSE) -> 304.73 | R22: =VLOOKUP($W22,EAI!$B$13:$AA$24,21,FALSE) -> 567.75 | S22: =VLOOKUP($W22,EAI!$B$13:$AA$24,22,FALSE) -> 515.4 | T22: =VLOOKUP($W22,EAI!$B$13:$AA$24,23,FALSE) -> 64.425 | U22: =VLOOKUP($W22,EAI!$B$13:$AA$24,24,FALSE) -> 632.175 | V22: =VLOOKUP($W22,EAI!$B:$AA,25,FALSE) -> 3275.671808 | W22: =SMALL(EAI!$AA$13:$AA$24,2) -> 3907.846808
B23: 3 | D23: Complexo Petroquímico do Rio de Janeiro (Comperj) | E23: Rodovia Estadual RJ-116 - Km 5,2 - Acesso A-1, s/n, Complemento Sambaetiba - Zona Urbana do 4º Distrito de Itaboraí - RJ CEP:24841-203 | F23: =VLOOKUP($W23,EAI!$B$13:$AA$24,7,FALSE) -> MAUÁ - SP | G23: =VLOOKUP($W23,EAI!$B$13:$AA$24,8,FALSE) -> Pirapora - MG | H23: =VLOOKUP($W23,EAI!$B$13:$AA$24,9,FALSE) -> 2.749827121 | I23: =VLOOKUP($W23,EAI!$B$13:$AA$24,10,FALSE) -> 2.566491808 | J23: =VLOOKUP($W23,EAI!$B$13:$AA$24,11,FALSE) -> 2749.827121 | K23: =VLOOKUP($W23,EAI!$B$13:$AA$24,12,FALSE) -> 759.84 | L23: =VLOOKUP($W23,EAI!$B$13:$AA$24,13,FALSE) -> 3509.667121 | M23: =VLOOKUP($W23,EAI!$B$13:$AA$24,14,FALSE) -> 920 | N23: =VLOOKUP($W23,'[2]Transporte CM-30'!$B$13:$AA$25,15,FALSE) ->  | O23: =VLOOKUP($W23,EAI!$B$13:$AA$24,18,FALSE) -> 259.7 | P23: =VLOOKUP($W23,EAI!$B$13:$AA$24,19,FALSE) -> 57 | Q23: =VLOOKUP($W23,EAI!$B$13:$AA$24,20,FALSE) -> 366.92 | R23: =VLOOKUP($W23,EAI!$B$13:$AA$24,21,FALSE) -> 683.62 | S23: =VLOOKUP($W23,EAI!$B$13:$AA$24,22,FALSE) -> 280.2 | T23: =VLOOKUP($W23,EAI!$B$13:$AA$24,23,FALSE) -> 35.025 | U23: =VLOOKUP($W23,EAI!$B$13:$AA$24,24,FALSE) -> 718.645 | V23: =VLOOKUP($W23,EAI!$B:$AA,25,FALSE) -> 3509.667121 | W23: =SMALL(EAI!$AA$13:$AA$24,3) -> 4228.312121
B24: 4 | F24: =VLOOKUP($W24,EAI!$B$13:$AA$24,7,FALSE) -> SÃO FRANCISCO DO CONDE - BA | G24: =VLOOKUP($W24,EAI!$B$13:$AA$24,8,FALSE) -> Pirapora - MG | H24: =VLOOKUP($W24,EAI!$B$13:$AA$24,9,FALSE) -> - | I24: =VLOOKUP($W24,EAI!$B$13:$AA$24,10,FALSE) -> 2.666435118 | J24: =VLOOKUP($W24,EAI!$B$13:$AA$24,11,FALSE) -> 2666.435118 | K24: =VLOOKUP($W24,EAI!$B$13:$AA$24,12,FALSE) -> 736.8 | L24: =VLOOKUP($W24,EAI!$B$13:$AA$24,13,FALSE) -> 3403.235118 | M24: =VLOOKUP($W24,EAI!$B$13:$AA$24,14,FALSE) -> 1116 | N24: =VLOOKUP($W24,'[2]Transporte CM-30'!$B$13:$AA$25,15,FALSE) ->  | O24: =VLOOKUP($W24,EAI!$B$13:$AA$24,18,FALSE) -> 309.29 | P24: =VLOOKUP($W24,EAI!$B$13:$AA$24,19,FALSE) -> 67.89 | Q24: =VLOOKUP($W24,EAI!$B$13:$AA$24,20,FALSE) -> 437 | R24: =VLOOKUP($W24,EAI!$B$13:$AA$24,21,FALSE) -> 814.18 | S24: =VLOOKUP($W24,EAI!$B$13:$AA$24,22,FALSE) -> 204 | T24: =VLOOKUP($W24,EAI!$B$13:$AA$24,23,FALSE) -> 25.5 | U24: =VLOOKUP($W24,EAI!$B$13:$AA$24,24,FALSE) -> 839.68 | V24: =VLOOKUP($W24,EAI!$B:$AA,25,FALSE) -> 3403.235118 | W24: =SMALL(EAI!$AA$13:$AA$24,4) -> 4242.915118
B25: 5 | F25: =VLOOKUP($W25,EAI!$B$13:$AA$24,7,FALSE) -> PAULÍNIA - SP | G25: =VLOOKUP($W25,EAI!$B$13:$AA$24,8,FALSE) -> Pirapora - MG | H25: =VLOOKUP($W25,EAI!$B$13:$AA$24,9,FALSE) -> 2.749827121 | I25: =VLOOKUP($W25,EAI!$B$13:$AA$24,10,FALSE) -> 2.566491808 | J25: =VLOOKUP($W25,EAI!$B$13:$AA$24,11,FALSE) -> 2749.827121 | K25: =VLOOKUP($W25,EAI!$B$13:$AA$24,12,FALSE) -> 759.84 | L25: =VLOOKUP($W25,EAI!$B$13:$AA$24,13,FALSE) -> 3509.667121 | M25: =VLOOKUP($W25,EAI!$B$13:$AA$24,14,FALSE) -> 860 | N25: =VLOOKUP($W25,'[2]Transporte CM-30'!$B$13:$AA$25,15,FALSE) ->  | O25: =VLOOKUP($W25,EAI!$B$13:$AA$24,18,FALSE) -> 244.52 | P25: =VLOOKUP($W25,EAI!$B$13:$AA$24,19,FALSE) -> 53.67 | Q25: =VLOOKUP($W25,EAI!$B$13:$AA$24,20,FALSE) -> 345.48 | R25: =VLOOKUP($W25,EAI!$B$13:$AA$24,21,FALSE) -> 643.67 | S25: =VLOOKUP($W25,EAI!$B$13:$AA$24,22,FALSE) -> 746.4 | T25: =VLOOKUP($W25,EAI!$B$13:$AA$24,23,FALSE) -> 93.3 | U25: =VLOOKUP($W25,EAI!$B$13:$AA$24,24,FALSE) -> 736.97 | V25: =VLOOKUP($W25,EAI!$B:$AA,25,FALSE) -> 3509.667121 | W25: =SMALL(EAI!$AA$13:$AA$24,5) -> 4246.637121
B26: 6 | F26: =VLOOKUP($W26,EAI!$B$13:$AA$24,7,FALSE) -> CUBATÃO - SP | G26: =VLOOKUP($W26,EAI!$B$13:$AA$24,8,FALSE) -> Pirapora - MG | H26: =VLOOKUP($W26,EAI!$B$13:$AA$24,9,FALSE) -> 2.749827121 | I26: =VLOOKUP($W26,EAI!$B$13:$AA$24,10,FALSE) -> 2.566491808 | J26: =VLOOKUP($W26,EAI!$B$13:$AA$24,11,FALSE) -> 2749.827121 | K26: =VLOOKUP($W26,EAI!$B$13:$AA$24,12,FALSE) -> 759.84 | L26: =VLOOKUP($W26,EAI!$B$13:$AA$24,13,FALSE) -> 3509.667121 | M26: =VLOOKUP($W26,EAI!$B$13:$AA$24,14,FALSE) -> 961 | N26: =VLOOKUP($W26,'[2]Transporte CM-30'!$B$13:$AA$25,15,FALSE) ->  | O26: =VLOOKUP($W26,EAI!$B$13:$AA$24,18,FALSE) -> 270.07 | P26: =VLOOKUP($W26,EAI!$B$13:$AA$24,19,FALSE) -> 59.28 | Q26: =VLOOKUP($W26,EAI!$B$13:$AA$24,20,FALSE) -> 381.58 | R26: =VLOOKUP($W26,EAI!$B$13:$AA$24,21,FALSE) -> 710.93 | S26: =VLOOKUP($W26,EAI!$B$13:$AA$24,22,FALSE) -> 280.2 | T26: =VLOOKUP($W26,EAI!$B$13:$AA$24,23,FALSE) -> 35.025 | U26: =VLOOKUP($W26,EAI!$B$13:$AA$24,24,FALSE) -> 745.955 | V26: =VLOOKUP($W26,EAI!$B:$AA,25,FALSE) -> 3509.667121 | W26: =SMALL(EAI!$AA$13:$AA$24,6) -> 4255.622121
B28: 1 | C28: RR1-C | D28: Refinaria Abreu e Lima | E28: Rodovia PE 60, Km 10 - Ipojuca - PE CEP:55590-000 | F28: =VLOOKUP($W28,'RR-1C'!$B:$AA,7,FALSE) -> SARZEDO - MG | G28: =VLOOKUP($W28,'RR-1C'!$B:$AA,8,FALSE) -> Pirapora - MG | H28: =VLOOKUP($W28,'RR-1C'!$B:$AA,9,FALSE) -> 2.725016392 | I28: =VLOOKUP($W28,'RR-1C'!$B:$AA,10,FALSE) -> 2.773497503 | J28: =VLOOKUP($W28,'RR-1C'!$B:$AA,11,FALSE) -> 2725.016392 | K28: =VLOOKUP($W28,'RR-1C'!$B:$AA,12,FALSE) -> 752.99 | L28: =VLOOKUP($W28,'RR-1C'!$B:$AA,13,FALSE) -> 3478.006392 | M28: =VLOOKUP($W28,'RR-1C'!$B:$AA,14,FALSE) -> 358 | N28: =VLOOKUP($W28,'[2]Transporte RR-1C'!$B:$AA,15,FALSE) ->  | O28: =VLOOKUP($W28,'RR-1C'!$B:$AA,18,FALSE) -> 117.51 | P28: =VLOOKUP($W28,'RR-1C'!$B:$AA,19,FALSE) -> 25.79 | Q28: =VLOOKUP($W28,'RR-1C'!$B:$AA,20,FALSE) -> 166.02 | R28: =VLOOKUP($W28,'RR-1C'!$B:$AA,21,FALSE) -> 309.32 | S28: =VLOOKUP($W28,'RR-1C'!$B:$AA,22,FALSE) -> 148.2 | T28: =VLOOKUP($W28,'RR-1C'!$B:$AA,23,FALSE) -> 29.64 | U28: =VLOOKUP($W28,'RR-1C'!$B:$AA,24,FALSE) -> 338.96 | V28: =VLOOKUP($W28,'RR-1C'!$B:$AA,25,FALSE) -> 3478.006392 | W28: =SMALL('RR-1C'!$AA$13:$AA$27,1) -> 3816.966392
B29: 2 | D29: Refinaria Potiguar Clara Camarão | E29: Rodovia RN 221, KM 25 - Guamaré - RN CEP:59598-000 | F29: =VLOOKUP($W29,'RR-1C'!$B:$AA,7,FALSE) -> UBERLANDIA - MG | G29: =VLOOKUP($W29,'RR-1C'!$B:$AA,8,FALSE) -> Pirapora - MG | H29: =VLOOKUP($W29,'RR-1C'!$B:$AA,9,FALSE) -> 2.725016392 | I29: =VLOOKUP($W29,'RR-1C'!$B:$AA,10,FALSE) -> 2.773497503 | J29: =VLOOKUP($W29,'RR-1C'!$B:$AA,11,FALSE) -> 2725.016392 | K29: =VLOOKUP($W29,'RR-1C'!$B:$AA,12,FALSE) -> 752.99 | L29: =VLOOKUP($W29,'RR-1C'!$B:$AA,13,FALSE) -> 3478.006392 | M29: =VLOOKUP($W29,'RR-1C'!$B:$AA,14,FALSE) -> 472 | N29: =VLOOKUP($W29,'[2]Transporte RR-1C'!$B:$AA,15,FALSE) ->  | O29: =VLOOKUP($W29,'RR-1C'!$B:$AA,18,FALSE) -> 146.36 | P29: =VLOOKUP($W29,'RR-1C'!$B:$AA,19,FALSE) -> 32.12 | Q29: =VLOOKUP($W29,'RR-1C'!$B:$AA,20,FALSE) -> 206.78 | R29: =VLOOKUP($W29,'RR-1C'!$B:$AA,21,FALSE) -> 385.26 | S29: =VLOOKUP($W29,'RR-1C'!$B:$AA,22,FALSE) -> 152.4 | T29: =VLOOKUP($W29,'RR-1C'!$B:$AA,23,FALSE) -> 30.48 | U29: =VLOOKUP($W29,'RR-1C'!$B:$AA,24,FALSE) -> 415.74 | V29: =VLOOKUP($W29,'RR-1C'!$B:$AA,25,FALSE) -> 3478.006392 | W29: =SMALL('RR-1C'!$AA$13:$AA$27,2) -> 3893.746392
B30: 3 | D30: Complexo Petroquímico do Rio de Janeiro (Comperj) | E30: Rodovia Estadual RJ-116 - Km 5,2 - Acesso A-1, s/n, Complemento Sambaetiba - Zona Urbana do 4º Distrito de Itaboraí - RJ CEP:24841-203 | F30: =VLOOKUP($W30,'RR-1C'!$B:$AA,7,FALSE) -> DUQUE DE CAXIAS - RJ | G30: =VLOOKUP($W30,'RR-1C'!$B:$AA,8,FALSE) -> Pirapora - MG | H30: =VLOOKUP($W30,'RR-1C'!$B:$AA,9,FALSE) -> - | I30: =VLOOKUP($W30,'RR-1C'!$B:$AA,10,FALSE) -> 2.773497503 | J30: =VLOOKUP($W30,'RR-1C'!$B:$AA,11,FALSE) -> 2773.497503 | K30: =VLOOKUP($W30,'RR-1C'!$B:$AA,12,FALSE) -> 766.38 | L30: =VLOOKUP($W30,'RR-1C'!$B:$AA,13,FALSE) -> 3539.877503 | M30: =VLOOKUP($W30,'RR-1C'!$B:$AA,14,FALSE) -> 749 | N30: =VLOOKUP($W30,'[2]Transporte RR-1C'!$B:$AA,15,FALSE) ->  | O30: =VLOOKUP($W30,'RR-1C'!$B:$AA,18,FALSE) -> 216.44 | P30: =VLOOKUP($W30,'RR-1C'!$B:$AA,19,FALSE) -> 47.51 | Q30: =VLOOKUP($W30,'RR-1C'!$B:$AA,20,FALSE) -> 305.81 | R30: =VLOOKUP($W30,'RR-1C'!$B:$AA,21,FALSE) -> 569.76 | S30: =VLOOKUP($W30,'RR-1C'!$B:$AA,22,FALSE) -> 515.4 | T30: =VLOOKUP($W30,'RR-1C'!$B:$AA,23,FALSE) -> 103.08 | U30: =VLOOKUP($W30,'RR-1C'!$B:$AA,24,FALSE) -> 672.84 | V30: =VLOOKUP($W30,'RR-1C'!$B:$AA,25,FALSE) -> 3539.877503 | W30: =SMALL('RR-1C'!$AA$13:$AA$27,3) -> 4212.717503
B31: 4 | D31: Refinaria Abreu e Lima | E31: Rodovia PE 60, Km 10 - Ipojuca - PE CEP:55590-000 | F31: =VLOOKUP($W31,'RR-1C'!$B:$AA,7,FALSE) -> CACAPAVA - SP | G31: =VLOOKUP($W31,'RR-1C'!$B:$AA,8,FALSE) -> Pirapora - MG | H31: =VLOOKUP($W31,'RR-1C'!$B:$AA,9,FALSE) -> 2.929862074 | I31: =VLOOKUP($W31,'RR-1C'!$B:$AA,10,FALSE) -> 2.773497503 | J31: =VLOOKUP($W31,'RR-1C'!$B:$AA,11,FALSE) -> 2929.862074 | K31: =VLOOKUP($W31,'RR-1C'!$B:$AA,12,FALSE) -> 809.59 | L31: =VLOOKUP($W31,'RR-1C'!$B:$AA,13,FALSE) -> 3739.452074 | M31: =VLOOKUP($W31,'RR-1C'!$B:$AA,14,FALSE) -> 854 | N31: =VLOOKUP($W31,'[2]Transporte RR-1C'!$B:$AA,15,FALSE) ->  | O31: =VLOOKUP($W31,'RR-1C'!$B:$AA,18,FALSE) -> 243 | P31: =VLOOKUP($W31,'RR-1C'!$B:$AA,19,FALSE) -> 53.34 | Q31: =VLOOKUP($W31,'RR-1C'!$B:$AA,20,FALSE) -> 343.33 | R31: =VLOOKUP($W31,'RR-1C'!$B:$AA,21,FALSE) -> 639.67 | S31: =VLOOKUP($W31,'RR-1C'!$B:$AA,22,FALSE) -> 345.6 | T31: =VLOOKUP($W31,'RR-1C'!$B:$AA,23,FALSE) -> 69.12 | U31: =VLOOKUP($W31,'RR-1C'!$B:$AA,24,FALSE) -> 708.79 | V31: =VLOOKUP($W31,'RR-1C'!$B:$AA,25,FALSE) -> 3739.452074 | W31: =SMALL('RR-1C'!$AA$13:$AA$27,4) -> 4448.242074
B32: 5 | D32: Refinaria Potiguar Clara Camarão | E32: Rodovia RN 221, KM 25 - Guamaré - RN CEP:59598-000 | F32: =VLOOKUP($W32,'RR-1C'!$B:$AA,7,FALSE) -> CAIEIRAS - SP | G32: =VLOOKUP($W32,'RR-1C'!$B:$AA,8,FALSE) -> Pirapora - MG | H32: =VLOOKUP($W32,'RR-1C'!$B:$AA,9,FALSE) -> 2.929862074 | I32: =VLOOKUP($W32,'RR-1C'!$B:$AA,10,FALSE) -> 2.773497503 | J32: =VLOOKUP($W32,'RR-1C'!$B:$AA,11,FALSE) -> 2929.862074 | K32: =VLOOKUP($W32,'RR-1C'!$B:$AA,12,FALSE) -> 809.59 | L32: =VLOOKUP($W32,'RR-1C'!$B:$AA,13,FALSE) -> 3739.452074 | M32: =VLOOKUP($W32,'RR-1C'!$B:$AA,14,FALSE) -> 898 | N32: =VLOOKUP($W32,'[2]Transporte RR-1C'!$B:$AA,15,FALSE) ->  | O32: =VLOOKUP($W32,'RR-1C'!$B:$AA,18,FALSE) -> 254.13 | P32: =VLOOKUP($W32,'RR-1C'!$B:$AA,19,FALSE) -> 55.78 | Q32: =VLOOKUP($W32,'RR-1C'!$B:$AA,20,FALSE) -> 359.06 | R32: =VLOOKUP($W32,'RR-1C'!$B:$AA,21,FALSE) -> 668.97 | S32: =VLOOKUP($W32,'RR-1C'!$B:$AA,22,FALSE) -> 270 | T32: =VLOOKUP($W32,'RR-1C'!$B:$AA,23,FALSE) -> 54 | U32: =VLOOKUP($W32,'RR-1C'!$B:$AA,24,FALSE) -> 722.97 | V32: =VLOOKUP($W32,'RR-1C'!$B:$AA,25,FALSE) -> 3739.452074 | W32: =SMALL('RR-1C'!$AA$13:$AA$27,5) -> 4462.422074
B33: 6 | D33: Complexo Petroquímico do Rio de Janeiro (Comperj) | E33: Rodovia Estadual RJ-116 - Km 5,2 - Acesso A-1, s/n, Complemento Sambaetiba - Zona Urbana do 4º Distrito de Itaboraí - RJ CEP:24841-203 | F33: =VLOOKUP($W33,'RR-1C'!$B:$AA,7,FALSE) -> MARIALVA - PR | G33: =VLOOKUP($W33,'RR-1C'!$B:$AA,8,FALSE) -> Pirapora - MG | H33: =VLOOKUP($W33,'RR-1C'!$B:$AA,9,FALSE) -> 2.697487761 | I33: =VLOOKUP($W33,'RR-1C'!$B:$AA,10,FALSE) -> 2.707431613 | J33: =VLOOKUP($W33,'RR-1C'!$B:$AA,11,FALSE) -> 2697.487761 | K33: =VLOOKUP($W33,'RR-1C'!$B:$AA,12,FALSE) -> 745.38 | L33: =VLOOKUP($W33,'RR-1C'!$B:$AA,13,FALSE) -> 3442.867761 | M33: =VLOOKUP($W33,'RR-1C'!$B:$AA,14,FALSE) -> 1196 | N33: =VLOOKUP($W33,'[2]Transporte RR-1C'!$B:$AA,15,FALSE) ->  | O33: =VLOOKUP($W33,'RR-1C'!$B:$AA,18,FALSE) -> 329.53 | P33: =VLOOKUP($W33,'RR-1C'!$B:$AA,19,FALSE) -> 72.33 | Q33: =VLOOKUP($W33,'RR-1C'!$B:$AA,20,FALSE) -> 465.59 | R33: =VLOOKUP($W33,'RR-1C'!$B:$AA,21,FALSE) -> 867.45 | S33: =VLOOKUP($W33,'RR-1C'!$B:$AA,22,FALSE) -> 798.9 | T33: =VLOOKUP($W33,'RR-1C'!$B:$AA,23,FALSE) -> 159.78 | U33: =VLOOKUP($W33,'RR-1C'!$B:$AA,24,FALSE) -> 1027.23 | V33: =VLOOKUP($W33,'RR-1C'!$B:$AA,25,FALSE) -> 3442.867761 | W33: =SMALL('RR-1C'!$AA$13:$AA$27,6) -> 4470.097761
